Workbook

Sheet 1. Utility_Info
AB1: Algoma Power Inc.
AB2: Atikokan Hydro Inc.
AB3: Attawapiskat Power Corporation
AB4: Bluewater Power Distribution Corp.
AB5: Brant County Power
AB6: Brantford Power Inc.
AB7: Burlington Hydro Inc.
AB8: Cambridge and North Dumfries Hydro
AB9: Canadian Niagara Power Inc. – Eastern Ontario Power/Fort Erie/Port Colborne
AB10: Centre Wellington Hydro Ltd.
AB11: Chapleau Public Utilities Corporation
AB12: COLLUS Power Corp.
H13: Version | I13: 4 | AB13: Cooperative Hydro Embrun Inc.
AB14: E.L.K. Energy Inc.
C15: Utility Name | D15: Alectra Utilities Corporation - Brampton Rate Zone | AB15: Enersource Hydro Mississauga Inc.
AB16: Entegrus Powerlines Inc.
C17: Assigned EB Number | D17: EB-2025-0252 | AB17: ENWIN Utilities Ltd.
AB18: Erie Thames Powerlines Corp.
C19: Name and Title | D19: Natalie Yeates, Director, Regulatory Affairs | AB19: Espanola Regional Hydro Distribution Corporation
AB20: Essex Powerlines Corporation
C21: Phone Number | D21: 416-617-1959 | AB21: Festival Hydro Inc.
AB22: Fort Albany Power Corporation
C23: Email Address | D23: natalie.yeates@alectrautilities.com | AB23: Fort Frances Power Corporation
AB24: Greater Sudbury Hydro Inc.
C25: Date | AB25: Grimsby Power Inc.
AB26: Guelph Hydro Electric Systems Inc.
C27: ICM Project | D27: 2021 - Goreway Road Widening | AB27: Halton Hills Hydro Inc.
AB28: Hearst Power Distribution Co. Ltd.
A29: Note: Drop-down lists are shaded blue; Input cells are shaded green.
AB31: Horizon Utilities Corporation
AB32: Hydro 2000 Inc.
AB33: Hydro Hawkesbury Inc.
AB34: Hydro One Brampton Networks Inc.
AB35: Hydro One Networks Inc.
AB36: Hydro One Remote Communities Inc.
AB37: Hydro Ottawa Limited
AB38: Innisfil Hydro Dist. Systems Limited
AB39: Kashechewan Power Corporation
AB40: Kenora Hydro Electric Corporation Ltd.
AB41: Kingston Hydro Corporation
AB42: Kitchener-Wilmot Hydro Inc.
AB43: Lakefront Utilities Inc.
AB44: Lakeland Power Distribution Ltd.
AB45: London Hydro Inc.
AB46: Midland Power Utility Corporation
AB47: Milton Hydro Distribution Inc.
AB48: Newmarket – Tay Power Distribution Ltd.
AB49: Niagara Peninsula Energy Inc.
AB50: Niagara-on-the-Lake Hydro Inc.
AB51: Norfolk Power Distribution Ltd.
AB52: North Bay Hydro Distribution Limited
AB53: Northern Ontario Wires Inc.
AB54: Oakville Hydro Distribution Inc.
AB55: Orangeville Hydro Limited
AB56: Orillia Power Distribution Corp.
AB57: Oshawa PUC Networks Inc.
AB58: Ottawa River Power Corporation
AB59: Parry Sound Power Corporation
AB60: Peterborough Distribution Inc.
AB61: PowerStream Inc.
AB62: PUC Distribution Inc.
AB63: Renfrew Hydro Inc.
AB64: Rideau St. Lawrence Distribution Inc.
AB65: St. Thomas Energy Inc.
AB66: Sioux Lookout Hydro Inc.
AB67: Thunder Bay Hydro Electricity Distribution
AB68: Tillsonburg Hydro Inc.
AB69: Toronto Hydro-Electric System Limited
AB70: Veridian Connections Inc.
AB71: Wasaga Distribution Inc.
AB72: Waterloo North Hydro Inc.
AB73: Welland Hydro Electric System Corp.
AB74: Wellington North Power Inc.
AB75: West Coast Huron Energy Inc.
AB76: Westario Power Inc.
AB77: Whitby Hydro Electric Corporation
AB78: Woodstock Hydro Services Inc.
AB81: Alectra Utilities Corporation - PowerStream Rate Zone
AB82: Alectra Utilities Corporation - Brampton Rate Zone
AB83: Alectra Utilities Corporation - Enersource Rate Zone
AB84: Alectra Utilities Corporation - Horizon Rate Zone
AB85: Alectra Utilities Corporation - Guelph Rate Zone

Sheet 2. ICM_Costs
G18: 2021 | I18: 2015 | K18: Total
B19: Sheet 2: ICM Capital Cost Data | G19: Audited Actual | I19: Forecast
B39: 1 | C39: Capital Costs
E40: Asset Type
C41: ICP 1 System Access | E41: Asset type must be selected to enable calculations | G41: =IF(ISBLANK(G19),"",G19) -> Audited Actual | I41: =IF(ISBLANK(I19),"",I19) -> Forecast
C42: ICP 1.1 | E42: OH Swtch & Cpctrs | G42: 214477.9056 | K42: =SUM(G42,I42) -> 214477.9056
C44: ICP 1.2 | E44: Concrete Poles | G44: 1310698.312 | K44: =SUM(G44,I44) -> 1310698.312
C46: ICP 1.3 | E46: OH Transformers | G46: 238308.784 | K46: =SUM(G46,I46) -> 238308.784
C48: ICP 1.4 | E48: OH Prim Cond & Dev | G48: 357463.176 | K48: =SUM(G48,I48) -> 357463.176
C50: ICP 1.5 | E50: OH Sec Cond & Dev | G50: 119154.392 | K50: =SUM(G50,I50) -> 119154.392
C52: ICP 1.6 | E52: UG Prim XLPE TR | G52: 71492.6352 | K52: 71492.6352
C54: ICP 1.7 | E54: UG Sec - Dir Buried | G54: 71492.6352 | K54: 71492.6352
C56: ICP 1.8 | K56: 0
C58: ICP 1.9 | K58: 0
C60: ICP 1.10 | K60: 0
C62: Total General Plant | G62: =SUM(G42,G44,G46,G48,G50,G52,G54,G56,G58,G60) -> 2383087.84 | I62: =SUM(I42,I44,I46,I48,I50,I52,I54,I56,I58,I60) -> 0 | K62: =SUM(K42,K44,K46,K48,K50,K52,K54,K56,K58,K60) -> 2383087.84
E64: =E40 -> Asset Type
C65: ICP 2 SYSTEM RENEWAL - POLE REPLACEMENTS | G65: =G41 -> Audited Actual | I65: =I41 -> Forecast
C66: ICP 2.1. | K66: =SUM(G66,I66) -> 0
C68: ICP 2.2 | K68: =SUM(G68,I68) -> 0
C70: ICP 2.3 | K70: =SUM(G70,I70) -> 0
C72: ICP 2.4 | K72: =SUM(G72,I72) -> 0
C74: ICP 2.5 | K74: =SUM(G74,I74) -> 0
C76: ICP 2.6 | K76: =SUM(G76,I76) -> 0
C78: ICP 2.7 | K78: =SUM(G78,I78) -> 0
C80: ICP 2.8 | K80: =SUM(G80,I80) -> 0
C82: ICP 2.9 | K82: =SUM(G82,I82) -> 0
C84: ICP 2.10 | K84: 0
C86: Total System Renewal - Pole Replacements | G86: =SUM(G66,G68,G70,G72,G74,G76,G78,G80,G82,G84) -> 0 | I86: =SUM(I66,I68,I70,I72,I74,I76,I78,I80,I82,I84) -> 0 | K86: =SUM(K66,K68,K70,K72,K74,K76,K78,K80,K82,K84) -> 0
E88: =E64 -> Asset Type
C89: ICP 3 SYSTEM RENEWAL - STATION REPLACEMENTS | G89: =G65 -> Audited Actual | I89: =I65 -> Forecast
C90: ICP 3.1 | K90: =SUM(G90,I90) -> 0
C92: ICP 3.2 | K92: =SUM(G92,I92) -> 0
C94: ICP 3.3 | K94: =SUM(G94,I94) -> 0
C96: ICP 3.4 | K96: =SUM(G96,I96) -> 0
C98: ICP 3.5 | K98: =SUM(G98,I98) -> 0
C100: ICP 3.6 | K100: =SUM(G100,I100) -> 0
C102: ICP 3.7 | K102: =SUM(G102,I102) -> 0
C104: ICP 3.8 | K104: =SUM(G104,I104) -> 0
C106: ICP 3.9 | K106: =SUM(G106,I106) -> 0
C108: ICP 3.10 | K108: 0
C110: Total System Renewal - Station Replacements | G110: =SUM(G90:G108) -> 0 | I110: =SUM(I90,I92,I94,I96,I98,I100,I102,I104,I106,I108) -> 0 | K110: =SUM(K90,K92,K94,K96,K98,K100,K102,K104,K106,K108) -> 0
E112: =E88 -> Asset Type
C113: ICP 4 SYSTEM RENEWAL - SWITCHGEAR & TRANFORMER REPLACEMENTS | G113: Audited Actual | I113: =I89 -> Forecast
C115: ICP 4.1 | K115: =SUM(G115,I115) -> 0
C117: ICP 4.2 | K117: =SUM(G117,I117) -> 0
C119: ICP 4.3 | K119: =SUM(G119,I119) -> 0
C121: ICP 4.4 | K121: =SUM(G121,I121) -> 0
C123: ICP 4.5 | K123: =SUM(G123,I123) -> 0
C125: ICP 4.6 | K125: =SUM(G125,I125) -> 0
C127: ICP 4.7 | K127: =SUM(G127,I127) -> 0
C129: ICP 4.8 | K129: =SUM(G129,I129) -> 0
C131: ICP 4.9 | K131: =SUM(G131,I131) -> 0
C133: ICP 4.10 | K133: 0
C135: Total System Renewal - Switchgear & Transformer ReplacementS | G135: =SUM(G115:G133) -> 0 | I135: =SUM(I115,I117,I119,I121,I123,I125,I127,I129,I131,I133) -> 0 | K135: =SUM(K115,K117,K119,K121,K123,K125,K127,K129,K131,K133) -> 0
E137: =E112 -> Asset Type
C138: ICP 5 SYSTEM CAPACITY RELIEF | G138: Audited Actual | I138: =I113 -> Forecast
C140: ICP 5.1 | K140: =SUM(G140,I140) -> 0
C142: ICP 5.2 | K142: =SUM(G142,I142) -> 0
C144: ICP 5.3 | K144: =SUM(G144,I144) -> 0
C146: ICP 5.4 | K146: =SUM(G146,I146) -> 0
C148: ICP 5.5 | K148: =SUM(G148,I148) -> 0
C150: ICP 5.6 | K150: =SUM(G150,I150) -> 0
C152: ICP 5.7 | K152: =SUM(G152,I152) -> 0
C154: ICP 5.8 | K154: =SUM(G154,I154) -> 0
C156: ICP 5.9 | K156: =SUM(G156,I156) -> 0
C158: ICP 5.10 | K158: 0
C160: Total System Capacity Relief | G160: =SUM(G140:G158) -> 0 | I160: =SUM(I140,I142,I144,I146,I148,I150,I152,I154,I156,I158) -> 0 | K160: =SUM(K140,K142,K144,K146,K148,K150,K152,K154,K156,K158) -> 0
C162: Total Capital Costs Related to Incremental Capital Projects (ICP) | G162: =G62+G86+G110+G135+G160 -> 2383087.84 | I162: =SUM(I62,I86,I110,I135,I160) -> 0 | K162: =SUM(K62,K86,K110,K135,K160) -> 2383087.84
E164: =E137 -> Asset Type
C165: OTHER CAPITAL COST | G165: Audited Actual | I165: =I138 -> Forecast
C167: A | K167: =SUM(G167,I167) -> 0
C169: B | K169: =SUM(G169,I169) -> 0
C171: C | K171: =SUM(G171,I171) -> 0
C173: Total Other Capital Costs | G173: =SUM(G167,G169,G171) -> 0 | I173: =SUM(I167,I169,I171) -> 0 | K173: =SUM(K167,K169,K171) -> 0
C175: Total ICM System Access | G175: =G162+G173 -> 2383087.84 | I175: =I162+I173 -> 0 | K175: =K162+K173 -> 2383087.84
B178: 2 | C178: Aggregated ICM Costs by Category
C180: Asset Account | D180: Capital | E180: Account
C182: 120227 | D182: OH Swtch & Cpctrs | E182: 1835 | G182: =SUMIF($E$42:$E$171,$D182,G$42:G$171) -> 214477.9056 | I182: =SUMIF($E$42:$E$171,$D182,I$42:I$171) -> 0 | K182: =SUM(G182:J182) -> 214477.9056
C184: 120223 | D184: Concrete Poles | E184: 1830 | G184: =SUMIF($E$42:$E$171,$D184,G$42:G$171) -> 1310698.312 | I184: =SUMIF($E$42:$E$171,$D184,I$42:I$171) -> 0 | K184: =SUM(G184:J184) -> 1310698.312
C186: 120221 | D186: Wood Poles | E186: 1830 | G186: =SUMIF($E$42:$E$171,$D186,G$42:G$171) -> 0 | I186: =SUMIF($E$42:$E$171,$D186,I$42:I$171) -> 0 | K186: =SUM(G186:J186) -> 0
C188: 120225 | D188: OH Transformers | E188: 1850 | G188: =SUMIF($E$42:$E$171,$D188,G$42:G$171) -> 238308.784 | I188: =SUMIF($E$42:$E$171,$D188,I$42:I$171) -> 0 | K188: =SUM(G188:J188) -> 238308.784
C190: 120224 | D190: OH Prim Cond & Dev | E190: 1835 | G190: =SUMIF($E$42:$E$171,$D190,G$42:G$171) -> 357463.176 | I190: =SUMIF($E$42:$E$171,$D190,I$42:I$171) -> 0 | K190: =SUM(G190:J190) -> 357463.176
C192: 120226 | D192: OH Sec Cond & Dev | E192: 1855 | G192: =SUMIF($E$42:$E$171,$D192,G$42:G$171) -> 119154.392 | I192: =SUMIF($E$42:$E$171,$D192,I$42:I$171) -> 0 | K192: =SUM(G192:J192) -> 119154.392
C194: 120243 | D194: UG Transformers | E194: 1850 | G194: =SUMIF($E$42:$E$171,$D194,G$42:G$171) -> 0 | I194: =SUMIF($E$42:$E$171,$D194,I$42:I$171) -> 0 | K194: =SUM(G194:J194) -> 0
C196: 120245 | D196: UG Conduit | E196: 1840 | G196: =SUMIF($E$42:$E$171,$D196,G$42:G$171) -> 0 | I196: =SUMIF($E$42:$E$171,$D196,I$42:I$171) -> 0 | K196: =SUM(G196:J196) -> 0
C198: 120241.XLPETR | D198: UG Prim XLPE TR | E198: 1845 | G198: =SUMIF($E$42:$E$171,$D198,G$42:G$171) -> 71492.6352 | I198: =SUMIF($E$42:$E$171,$D198,I$42:I$171) -> 0 | K198: =SUM(G198:J198) -> 71492.6352
C200: 120242.DB | D200: UG Sec - Dir Buried | E200: 1845 | G200: =SUMIF($E$42:$E$171,$D200,G$42:G$171) -> 71492.6352 | I200: =SUMIF($E$42:$E$171,$D200,I$42:I$171) -> 0 | K200: =SUM(G200:J200) -> 71492.6352
C202: 120242.IDSERV | D202: UG Sec In Duct/Svs | E202: 1845 | G202: =SUMIF($E$42:$E$171,$D202,G$42:G$171) -> 0 | I202: 0 | K202: 0
C204: 120248 | D204: Air Insulated Switchgear | E204: 1845 | G204: 0 | I204: 0 | K204: 0
C206: 120249 | D206: Solid Dielectric Switchgear | E206: 1845 | G206: 0 | I206: 0 | K206: 0
C208: 120244 | D208: UG Cable Injection | E208: 1845 | G208: 0
C210: 120063.MS | D210: MS Integrated P&C Systems | E210: 1820 | G210: 0
C212: 120021.MS | D212: MS Building Improvements | E212: 1820 | G212: 0
C214: 130104 | D214: Capital Contributions Paid | E214: 1609 | G214: 0
D216: Total Capital Costs | G216: =SUM(G182:G215) -> 2383087.84 | I216: =SUM(I182:I209) -> 0 | K216: =SUM(K182:K209) -> 2383087.84
G217: =IF(G216=G175," ","Error") ->  | I217: =IF(I216=I175,"","Error") ->  | K217: =IF(K216=K175,"","Error") -> 

Sheet 3. Cost_of_Service_Parameters
B17: Sheet 3: Parameters and Rates
G19: 2018 | I19: 2019 | K19: 2020 | M19: 2021 | O19: 2022 | Q19: 2023 | S19: 2024 | U19: 2025 | W19: 2026
B20: Cost of Capital
C21: Capital Structure
D22: Deemed Short-term Debt Capitalization | G22: 0.04 | I22: 0.04 | K22: 0.04 | M22: 0.04 | O22: 0.04 | Q22: 0.04 | S22: 0.04 | U22: 0.04 | W22: 0.04
D23: Deemed Long-term Debt Capitalization | G23: =60%-G22 -> 0.56 | I23: =60%-I22 -> 0.56 | K23: =60%-K22 -> 0.56 | M23: =60%-M22 -> 0.56 | O23: =60%-O22 -> 0.56 | Q23: =60%-Q22 -> 0.56 | S23: =60%-S22 -> 0.56 | U23: =60%-U22 -> 0.56 | W23: =60%-W22 -> 0.56
D24: Deemed Equity Capitalization | G24: =100%-G23-G25-G22 -> 0.4 | I24: =100%-I23-I25-I22 -> 0.4 | K24: =100%-K23-K25-K22 -> 0.4 | M24: =100%-M23-M25-M22 -> 0.4 | O24: =100%-O23-O25-O22 -> 0.4 | Q24: =100%-Q23-Q25-Q22 -> 0.4 | S24: =100%-S23-S25-S22 -> 0.4 | U24: =100%-U23-U25-U22 -> 0.4 | W24: =100%-W23-W25-W22 -> 0.4
D25: Preferred Shares
C26: Total | G26: =SUM(G22:G25) -> 1 | I26: =SUM(I22:I25) -> 1 | K26: =SUM(K22:K25) -> 1 | M26: =SUM(M22:M25) -> 1 | O26: =SUM(O22:O25) -> 1 | Q26: =SUM(Q22:Q25) -> 1 | S26: =SUM(S22:S25) -> 1 | U26: =SUM(U22:U25) -> 1 | W26: =SUM(W22:W25) -> 1
C28: Cost of Capital Parameters
D29: Deemed Short-term Debt Rate | G29: 0.0216 | I29: 0.0216 | K29: 0.0216 | M29: 0.0216 | O29: 0.0216 | Q29: 0.0216 | S29: 0.0216 | U29: 0.0216 | W29: 0.0216
D30: Long-term Debt Rate (actual/embedded/deemed)1 | G30: 0.0607 | I30: 0.0607 | K30: 0.0607 | M30: 0.0607 | O30: 0.0607 | Q30: 0.0607 | S30: 0.0607 | U30: 0.0607 | W30: 0.0607
D31: Target Return on Equity (ROE) | G31: 0.093 | I31: 0.093 | K31: 0.093 | M31: 0.093 | O31: 0.093 | Q31: 0.093 | S31: 0.093 | U31: 0.093 | W31: 0.093
D32: Return on Preferred Shares
C33: WACC | G33: =SUMPRODUCT(G22:G25,G29:G32) -> 0.072056 | I33: =SUMPRODUCT(I22:I25,I29:I32) -> 0.072056 | K33: =SUMPRODUCT(K22:K25,K29:K32) -> 0.072056 | M33: =SUMPRODUCT(M22:M25,M29:M32) -> 0.072056 | O33: =SUMPRODUCT(O22:O25,O29:O32) -> 0.072056 | Q33: =SUMPRODUCT(Q22:Q25,Q29:Q32) -> 0.072056 | S33: =SUMPRODUCT(S22:S25,S29:S32) -> 0.072056 | U33: =SUMPRODUCT(U22:U25,U29:U32) -> 0.072056 | W33: =SUMPRODUCT(W22:W25,W29:W32) -> 0.072056
B35: Working Capital Allowance
C36: Working Capital Allowance Rate | G36: 0.13 | I36: 0.13 | K36: 0.13 | M36: 0.13 | O36: 0.13 | Q36: 0.13 | S36: 0.13 | U36: 0.13 | W36: 0.13
C37: (% of the sum of Cost of Power + controllable expenses)
B39: Taxes/PILs
C40: Aggregate Corporate Income Tax Rate | G40: 0.265 | I40: 0.265 | K40: 0.265 | M40: 0.265 | O40: 0.265 | Q40: 0.265 | S40: 0.265 | U40: 0.265 | W40: 0.265
C41: Capital Tax (until July 1st, 2010) | G41: 0 | I41: 0 | K41: 0 | M41: 0 | O41: 0 | Q41: 0 | S41: 0 | U41: 0 | W41: 0
B43: Depreciation Rates | E43: Account
B44: (expressed as expected useful life in years)
C45: OH Swtch & Cpctrs | E45: 1835 | G45: 38 | I45: =G45 -> 38 | K45: =I45 -> 38 | M45: =K45 -> 38 | O45: =M45 -> 38 | Q45: =O45 -> 38 | S45: =Q45 -> 38 | U45: 35 | W45: =U45 -> 35
C46: - rate (%) | G46: =IF(G45=0,0,1/G45) -> 0.02631578947 | I46: =IF(I45=0,0,1/I45) -> 0.02631578947 | K46: =IF(K45=0,0,1/K45) -> 0.02631578947 | M46: =IF(M45=0,0,1/M45) -> 0.02631578947 | O46: =IF(O45=0,0,1/O45) -> 0.02631578947 | Q46: =IF(Q45=0,0,1/Q45) -> 0.02631578947 | S46: =IF(S45=0,0,1/S45) -> 0.02631578947 | U46: =IF(U45=0,0,1/U45) -> 0.02857142857 | W46: =IF(W45=0,0,1/W45) -> 0.02857142857
C47: Concrete Poles | E47: 1830 | G47: 51 | I47: =G47 -> 51 | K47: =I47 -> 51 | M47: =K47 -> 51 | O47: =M47 -> 51 | Q47: =O47 -> 51 | S47: =Q47 -> 51 | U47: 60 | W47: =U47 -> 60
C48: - rate (%) | G48: =IF(G47=0,0,1/G47) -> 0.01960784314 | I48: =IF(I47=0,0,1/I47) -> 0.01960784314 | K48: =IF(K47=0,0,1/K47) -> 0.01960784314 | M48: =IF(M47=0,0,1/M47) -> 0.01960784314 | O48: =IF(O47=0,0,1/O47) -> 0.01960784314 | Q48: =IF(Q47=0,0,1/Q47) -> 0.01960784314 | S48: =IF(S47=0,0,1/S47) -> 0.01960784314 | U48: =IF(U47=0,0,1/U47) -> 0.01666666667 | W48: =IF(W47=0,0,1/W47) -> 0.01666666667
C49: Wood Poles | E49: 1830 | G49: 44 | I49: =G49 -> 44 | K49: =I49 -> 44 | M49: =K49 -> 44 | O49: =M49 -> 44 | Q49: =O49 -> 44 | S49: =Q49 -> 44 | U49: 45 | W49: =U49 -> 45
C50: - rate (%) | G50: =IF(G49=0,0,1/G49) -> 0.02272727273 | I50: =IF(I49=0,0,1/I49) -> 0.02272727273 | K50: =IF(K49=0,0,1/K49) -> 0.02272727273 | M50: =IF(M49=0,0,1/M49) -> 0.02272727273 | O50: =IF(O49=0,0,1/O49) -> 0.02272727273 | Q50: =IF(Q49=0,0,1/Q49) -> 0.02272727273 | S50: =IF(S49=0,0,1/S49) -> 0.02272727273 | U50: =IF(U49=0,0,1/U49) -> 0.02222222222 | W50: =IF(W49=0,0,1/W49) -> 0.02222222222
C51: OH Transformers | E51: 1850 | G51: 41 | I51: =G51 -> 41 | K51: =I51 -> 41 | M51: =K51 -> 41 | O51: =M51 -> 41 | Q51: =O51 -> 41 | S51: =Q51 -> 41 | U51: 45 | W51: =U51 -> 45
C52: - rate (%) | G52: =IF(G51=0,0,1/G51) -> 0.0243902439 | I52: =IF(I51=0,0,1/I51) -> 0.0243902439 | K52: =IF(K51=0,0,1/K51) -> 0.0243902439 | M52: =IF(M51=0,0,1/M51) -> 0.0243902439 | O52: =IF(O51=0,0,1/O51) -> 0.0243902439 | Q52: =IF(Q51=0,0,1/Q51) -> 0.0243902439 | S52: =IF(S51=0,0,1/S51) -> 0.0243902439 | U52: =IF(U51=0,0,1/U51) -> 0.02222222222 | W52: =IF(W51=0,0,1/W51) -> 0.02222222222
C53: OH Prim Cond & Dev | E53: 1835 | G53: 45 | I53: =G53 -> 45 | K53: =I53 -> 45 | M53: =K53 -> 45 | O53: =M53 -> 45 | Q53: =O53 -> 45 | S53: =Q53 -> 45 | U53: 50 | W53: =U53 -> 50
C54: - rate (%) | G54: =IF(G53=0,0,1/G53) -> 0.02222222222 | I54: =IF(I53=0,0,1/I53) -> 0.02222222222 | K54: =IF(K53=0,0,1/K53) -> 0.02222222222 | M54: =IF(M53=0,0,1/M53) -> 0.02222222222 | O54: =IF(O53=0,0,1/O53) -> 0.02222222222 | Q54: =IF(Q53=0,0,1/Q53) -> 0.02222222222 | S54: =IF(S53=0,0,1/S53) -> 0.02222222222 | U54: =IF(U53=0,0,1/U53) -> 0.02 | W54: =IF(W53=0,0,1/W53) -> 0.02
C55: OH Sec Cond & Dev | E55: 1855 | G55: 48 | I55: =G55 -> 48 | K55: =I55 -> 48 | M55: =K55 -> 48 | O55: =M55 -> 48 | Q55: =O55 -> 48 | S55: =Q55 -> 48 | U55: 50 | W55: =U55 -> 50
C56: - rate (%) | G56: =IF(G55=0,0,1/G55) -> 0.02083333333 | I56: =IF(I55=0,0,1/I55) -> 0.02083333333 | K56: 0.02083333333 | M56: =IF(M55=0,0,1/M55) -> 0.02083333333 | O56: =IF(O55=0,0,1/O55) -> 0.02083333333 | Q56: =IF(Q55=0,0,1/Q55) -> 0.02083333333 | S56: =IF(S55=0,0,1/S55) -> 0.02083333333 | U56: =IF(U55=0,0,1/U55) -> 0.02 | W56: =IF(W55=0,0,1/W55) -> 0.02
C57: UG Transformers | E57: 1850 | G57: 32 | I57: =G57 -> 32 | K57: =I57 -> 32 | M57: =K57 -> 32 | O57: =M57 -> 32 | Q57: =O57 -> 32 | S57: =Q57 -> 32 | U57: 30 | W57: =U57 -> 30
C58: - rate (%) | G58: =IF(G57=0,0,1/G57) -> 0.03125 | I58: =IF(I57=0,0,1/I57) -> 0.03125 | K58: 0.03125 | M58: =IF(M57=0,0,1/M57) -> 0.03125 | O58: =IF(O57=0,0,1/O57) -> 0.03125 | Q58: =IF(Q57=0,0,1/Q57) -> 0.03125 | S58: =IF(S57=0,0,1/S57) -> 0.03125 | U58: =IF(U57=0,0,1/U57) -> 0.03333333333 | W58: =IF(W57=0,0,1/W57) -> 0.03333333333
C59: UG Conduit | E59: 1840 | G59: 52 | I59: =G59 -> 52 | K59: =I59 -> 52 | M59: =K59 -> 52 | O59: =M59 -> 52 | Q59: =O59 -> 52 | S59: =Q59 -> 52 | U59: 60 | W59: =U59 -> 60
C60: - rate (%) | G60: =IF(G59=0,0,1/G59) -> 0.01923076923 | I60: =IF(I59=0,0,1/I59) -> 0.01923076923 | K60: 0.01923076923 | M60: =IF(M59=0,0,1/M59) -> 0.01923076923 | O60: =IF(O59=0,0,1/O59) -> 0.01923076923 | Q60: =IF(Q59=0,0,1/Q59) -> 0.01923076923 | S60: =IF(S59=0,0,1/S59) -> 0.01923076923 | U60: =IF(U59=0,0,1/U59) -> 0.01666666667 | W60: =IF(W59=0,0,1/W59) -> 0.01666666667
C61: UG Prim XLPE TR | E61: 1845 | G61: 38 | I61: =G61 -> 38 | K61: =I61 -> 38 | M61: =K61 -> 38 | O61: =M61 -> 38 | Q61: =O61 -> 38 | S61: =Q61 -> 38 | U61: 45 | W61: =U61 -> 45
C62: - rate (%) | G62: =IF(G61=0,0,1/G61) -> 0.02631578947 | I62: =IF(I61=0,0,1/I61) -> 0.02631578947 | K62: 0.02631578947 | M62: =IF(M61=0,0,1/M61) -> 0.02631578947 | O62: =IF(O61=0,0,1/O61) -> 0.02631578947 | Q62: =IF(Q61=0,0,1/Q61) -> 0.02631578947 | S62: =IF(S61=0,0,1/S61) -> 0.02631578947 | U62: =IF(U61=0,0,1/U61) -> 0.02222222222 | W62: =IF(W61=0,0,1/W61) -> 0.02222222222
C63: UG Sec - Dir Buried | E63: 1845 | G63: 31 | I63: =G63 -> 31 | K63: =I63 -> 31 | M63: =K63 -> 31 | O63: =M63 -> 31 | Q63: =O63 -> 31 | S63: =Q63 -> 31 | U63: 30 | W63: =U63 -> 30
C64: - rate (%) | G64: 0.03225806452 | I64: 0.03225806452 | K64: 0.03225806452 | M64: =IF(M63=0,0,1/M63) -> 0.03225806452 | O64: =IF(O63=0,0,1/O63) -> 0.03225806452 | Q64: =IF(Q63=0,0,1/Q63) -> 0.03225806452 | S64: =IF(S63=0,0,1/S63) -> 0.03225806452 | U64: =IF(U63=0,0,1/U63) -> 0.03333333333 | W64: =IF(W63=0,0,1/W63) -> 0.03333333333
C65: UG Sec In Duct/Svs | E65: 1845 | G65: 37 | I65: =G65 -> 37 | K65: =I65 -> 37 | M65: =K65 -> 37 | O65: =M65 -> 37 | Q65: =O65 -> 37 | S65: =Q65 -> 37 | U65: 40 | W65: =U65 -> 40
C66: - rate (%) | G66: 0.02702702703 | I66: 0.02702702703 | K66: 0.02702702703 | M66: =IF(M65=0,0,1/M65) -> 0.02702702703 | O66: =IF(O65=0,0,1/O65) -> 0.02702702703 | Q66: =IF(Q65=0,0,1/Q65) -> 0.02702702703 | S66: =IF(S65=0,0,1/S65) -> 0.02702702703 | U66: =IF(U65=0,0,1/U65) -> 0.025 | W66: =IF(W65=0,0,1/W65) -> 0.025
C67: Air Insulated Switchgear | E67: 1845 | G67: 39 | I67: =G67 -> 39 | K67: =I67 -> 39 | M67: =K67 -> 39 | O67: =M67 -> 39 | Q67: =O67 -> 39 | S67: =Q67 -> 39 | U67: 35 | W67: =U67 -> 35
C68: - rate (%) | G68: 0.02564102564 | I68: 0.02564102564 | K68: 0.02564102564 | M68: =IF(M67=0,0,1/M67) -> 0.02564102564 | O68: =IF(O67=0,0,1/O67) -> 0.02564102564 | Q68: =IF(Q67=0,0,1/Q67) -> 0.02564102564 | S68: =IF(S67=0,0,1/S67) -> 0.02564102564 | U68: =IF(U67=0,0,1/U67) -> 0.02857142857 | W68: =IF(W67=0,0,1/W67) -> 0.02857142857
C69: Solid Dielectric Switchgear | E69: 1845 | G69: 42 | I69: =G69 -> 42 | K69: =I69 -> 42 | M69: =K69 -> 42 | O69: =M69 -> 42 | Q69: =O69 -> 42 | S69: =Q69 -> 42 | U69: 45 | W69: =U69 -> 45
C70: - rate (%) | G70: 0.02380952381 | I70: 0.02380952381 | K70: 0.02380952381 | M70: =IF(M69=0,0,1/M69) -> 0.02380952381 | O70: =IF(O69=0,0,1/O69) -> 0.02380952381 | Q70: =IF(Q69=0,0,1/Q69) -> 0.02380952381 | S70: =IF(S69=0,0,1/S69) -> 0.02380952381 | U70: =IF(U69=0,0,1/U69) -> 0.02222222222 | W70: =IF(W69=0,0,1/W69) -> 0.02222222222
C71: UG Cable Injection | E71: 1845 | G71: 24 | I71: =G71 -> 24 | K71: =I71 -> 24 | M71: =K71 -> 24 | O71: =M71 -> 24 | Q71: =O71 -> 24 | S71: =Q71 -> 24 | U71: 20 | W71: =U71 -> 20
C72: - rate (%) | G72: 0.04166666667 | I72: =IF(I71=0,0,1/I71) -> 0.04166666667 | K72: =IF(K71=0,0,1/K71) -> 0.04166666667 | M72: 0.04166666667 | O72: 0.04166666667 | Q72: 0.04166666667 | S72: 0.04166666667 | U72: 0.05 | W72: 0.05
C73: MS Integrated P&C Systems | E73: 1820 | G73: 36 | I73: =G73 -> 36 | K73: =I73 -> 36 | M73: =K73 -> 36 | O73: =M73 -> 36 | Q73: =O73 -> 36 | S73: =Q73 -> 36 | U73: 15 | W73: =U73 -> 15
C74: - rate (%) | G74: 0.02777777778 | I74: =IF(I73=0,0,1/I73) -> 0.02777777778 | K74: =IF(K73=0,0,1/K73) -> 0.02777777778 | M74: 0.02777777778 | O74: 0.02777777778 | Q74: 0.02777777778 | S74: 0.02777777778 | U74: 0.06666666667 | W74: 0.06666666667
C75: MS Building Improvements | E75: 1820 | G75: 21 | I75: =G75 -> 21 | K75: =I75 -> 21 | M75: =K75 -> 21 | O75: =M75 -> 21 | Q75: =O75 -> 21 | S75: =Q75 -> 21 | U75: 25 | W75: =U75 -> 25
C76: - rate (%) | G76: 0.04761904762 | I76: =IF(I75=0,0,1/I75) -> 0.04761904762 | K76: =IF(K75=0,0,1/K75) -> 0.04761904762 | M76: 0.04761904762 | O76: 0.04761904762 | Q76: 0.04761904762 | S76: 0.04761904762 | U76: 0.04 | W76: 0.04
C77: Capital Contributions Paid | E77: 1609 | G77: 40 | I77: =G77 -> 40 | K77: =I77 -> 40 | M77: =K77 -> 40 | O77: =M77 -> 40 | Q77: =O77 -> 40 | S77: =Q77 -> 40 | U77: 40 | W77: =U77 -> 40
C78: - rate (%) | G78: 0.025 | I78: =IF(I77=0,0,1/I77) -> 0.025 | K78: =IF(K77=0,0,1/K77) -> 0.025 | M78: 0.025 | O78: 0.025 | Q78: 0.025 | S78: 0.025 | U78: 0.025 | W78: 0.025
B82: CCA Rates
C83: OH Swtch & Cpctrs - CCA Class | G83: 47 | I83: 47 | K83: 47 | M83: 47 | O83: 47 | Q83: 47 | S83: 47 | U83: 47 | W83: 47
C84: OH Swtch & Cpctrs - CCA Rate | G84: 0.08 | I84: 0.08 | K84: 0.08 | M84: 0.08 | O84: 0.08 | Q84: 0.08 | S84: 0.08 | U84: 0.08 | W84: 0.08
C86: Concrete Poles - CCA Class | G86: 47 | I86: 47 | K86: 47 | M86: 47 | O86: 47 | Q86: 47 | S86: 47 | U86: 47 | W86: 47
C87: Concrete Poles - CCA Rate | G87: 0.08 | I87: 0.08 | K87: 0.08 | M87: 0.08 | O87: 0.08 | Q87: 0.08 | S87: 0.08 | U87: 0.08 | W87: 0.08
C89: Wood Poles - CCA Class | G89: 47 | I89: 47 | K89: 47 | M89: 47 | O89: 47 | Q89: 47 | S89: 47 | U89: 47 | W89: 47
C90: Wood Poles - CCA Rate | G90: 0.08 | I90: 0.08 | K90: 0.08 | M90: 0.08 | O90: 0.08 | Q90: 0.08 | S90: 0.08 | U90: 0.08 | W90: 0.08
C92: OH Transformers - CCA Class | G92: 47 | I92: 47 | K92: 47 | M92: 47 | O92: 47 | Q92: 47 | S92: 47 | U92: 47 | W92: 47
C93: OH Transformers - CCA Rate | G93: 0.08 | I93: 0.08 | K93: 0.08 | M93: 0.08 | O93: 0.08 | Q93: 0.08 | S93: 0.08 | U93: 0.08 | W93: 0.08
C95: OH Prim Cond & Dev - CCA Class | G95: 47 | I95: 47 | K95: 47 | M95: 47 | O95: 47 | Q95: 47 | S95: 47 | U95: 47 | W95: 47
C96: OH Prim Cond & Dev - CCA Rate | G96: 0.08 | I96: 0.08 | K96: 0.08 | M96: 0.08 | O96: 0.08 | Q96: 0.08 | S96: 0.08 | U96: 0.08 | W96: 0.08
C98: OH Sec Cond & Dev - CCA Class | G98: 47 | I98: 47 | K98: 47 | M98: 47 | O98: 47 | Q98: 47 | S98: 47 | U98: 47 | W98: 47
C99: OH Sec Cond & Dev - CCA Rate | G99: 0.08 | I99: 0.08 | K99: 0.08 | M99: 0.08 | O99: 0.08 | Q99: 0.08 | S99: 0.08 | U99: 0.08 | W99: 0.08
C101: UG Transformers - CCA Class | G101: 47 | I101: 47 | K101: 47 | M101: 47 | O101: 47 | Q101: 47 | S101: 47 | U101: 47 | W101: 47
C102: UG Transformers - CCA Rate | G102: 0.08 | I102: 0.08 | K102: 0.08 | M102: 0.08 | O102: 0.08 | Q102: 0.08 | S102: 0.08 | U102: 0.08 | W102: 0.08
C104: OH Services - CCA Class | G104: 47 | I104: 47 | K104: 47 | M104: 47 | O104: 47 | Q104: 47 | S104: 47 | U104: 47 | W104: 47
C105: OH Services - CCA Rate | G105: 0.08 | I105: 0.08 | K105: 0.08 | M105: 0.08 | O105: 0.08 | Q105: 0.08 | S105: 0.08 | U105: 0.08 | W105: 0.08
C107: UG Conduit - CCA Class | G107: 47 | I107: 8 | K107: 8 | M107: 8 | O107: 8 | Q107: 8 | S107: 8 | U107: 8 | W107: 8
C108: UG Conduit - CCA Rate | G108: 0.08 | I108: 0.2 | K108: 0.2 | M108: 0.2 | O108: 0.2 | Q108: 0.2 | S108: 0.2 | U108: 0.2 | W108: 0.2
C110: UG Prim XLPE TR - CCA Class | G110: 47 | I110: 8 | K110: 8 | M110: 8 | O110: 8 | Q110: 8 | S110: 8 | U110: 8 | W110: 8
C111: UG Prim XLPE TR - CCA Rate | G111: 0.08 | I111: 0.2 | K111: 0.2 | M111: 0.2 | O111: 0.2 | Q111: 0.2 | S111: 0.2 | U111: 0.2 | W111: 0.2
C113: UG Sec - Dir Buried - CCA Class | G113: 47 | I113: 47 | K113: 47 | M113: 47 | O113: 47 | Q113: 47 | S113: 47 | U113: 47 | W113: 47
C114: UG Sec - Dir Buried - CCA Rate | G114: 0.08 | I114: 0.08 | K114: 0.08 | M114: 0.08 | O114: 0.08 | Q114: 0.08 | S114: 0.08 | U114: 0.08 | W114: 0.08
C116: UG Sec In Duct/Svs - CCA Class | G116: 47 | I116: 47 | K116: 47 | M116: 47 | O116: 47 | Q116: 47 | S116: 47 | U116: 47 | W116: 47
C117: UG Sec In Duct/Svs - CCA Rate | G117: 0.08 | I117: 0.08 | K117: 0.08 | M117: 0.08 | O117: 0.08 | Q117: 0.08 | S117: 0.08 | U117: 0.08 | W117: 0.08
C119: Air Insulated Switchgear - CCA Class | G119: 47 | I119: 47 | K119: 47 | M119: 47 | O119: 47 | Q119: 47 | S119: 47 | U119: 47 | W119: 47
C120: Air Insulated Switchgear - CCA Rate | G120: 0.08 | I120: 0.08 | K120: 0.08 | M120: 0.08 | O120: 0.08 | Q120: 0.08 | S120: 0.08 | U120: 0.08 | W120: 0.08
C122: Solid Dielectric Switchgear - CCA Class | G122: 47 | I122: 47 | K122: 47 | M122: 47 | O122: 47 | Q122: 47 | S122: 47 | U122: 47 | W122: 47
C123: Solid Dielectric Switchgear - CCA Rate | G123: 0.08 | I123: 0.08 | K123: 0.08 | M123: 0.08 | O123: 0.08 | Q123: 0.08 | S123: 0.08 | U123: 0.08 | W123: 0.08
C125: UG Cable Injection - CCA Class | G125: 47 | I125: 47 | K125: 47 | M125: 47 | O125: 47 | Q125: 47 | S125: 47 | U125: 47 | W125: 47
C126: UG Cable Injection - CCA Rate | G126: 0.08 | I126: 0.08 | K126: 0.08 | M126: 0.08 | O126: 0.08 | Q126: 0.08 | S126: 0.08 | U126: 0.08 | W126: 0.08
C128: MS Integrated P&C Systems - CCA Class | G128: 47 | I128: 47 | K128: 47 | M128: 47 | O128: 47 | Q128: 47 | S128: 47 | U128: 47 | W128: 47
C129: MS Integrated P&C Systems - CCA Rate | G129: 0.08 | I129: 0.08 | K129: 0.08 | M129: 0.08 | O129: 0.08 | Q129: 0.08 | S129: 0.08 | U129: 0.08 | W129: 0.08
C131: MS Building Improvements - CCA Class | G131: 1 | I131: 1 | K131: 1 | M131: 1 | O131: 1 | Q131: 1 | S131: 1 | U131: 1 | W131: 1
C132: MS Building Improvements - CCA Rate | G132: 0.04 | I132: 0.04 | K132: 0.04 | M132: 0.04 | O132: 0.04 | Q132: 0.04 | S132: 0.04 | U132: 0.04 | W132: 0.04
C134: Capital Contributions Paid - CCA Class | G134: 47 | I134: 47 | K134: 47 | M134: 47 | O134: 47 | Q134: 47 | S134: 47 | U134: 47 | W134: 47
C135: Capital Contributions Paid - CCA Rate | G135: 0.08 | I135: 0.08 | K135: 0.08 | M135: 0.08 | O135: 0.08 | Q135: 0.08 | S135: 0.08 | U135: 0.08 | W135: 0.08
B138: Assumptions
B139: 1 | C139: Fiscal calendar year (January 1 to December 31) used.
B140: 3 | C140: Amortization is done on a striaght line basis and no "half-year" rule applied.

Sheet 4. ICM_Assets_and_Rate_Base
B17: Sheet 4: ICM Assets - Net Book Value
I18: 2021 | K18: 2022 | M18: 2023 | O18: 2024 | Q18: 2025 | S18: 2026
B19: Net Fixed Assets - OH Swtch & Cpctrs
C21: Gross Book Value
D22: Opening Balance | K22: =I23 -> 214477.9056 | M22: =K25 -> 214477.9056 | O22: =M25 -> 214477.9056 | Q22: =O25 -> 214477.9056 | S22: =Q25 -> 214477.9056
D23: Capital Additions during year (from ICM Costs) | I23: ='2. ICM_Costs'!G182 -> 214477.9056 | K23: ='2. ICM_Costs'!I208 -> 0 | M23: ='2. ICM_Costs'!K208 -> 0 | O23: ='2. ICM_Costs'!M182 -> 0 | Q23: ='2. ICM_Costs'!O182 -> 0 | S23: ='2. ICM_Costs'!Q182 -> 0
D24: Retirements/Removals (if applicable)
D25: Closing Balance | I25: =I22+I23-I24 -> 214477.9056 | K25: =K22+K23-K24 -> 214477.9056 | M25: =M22+M23-M24 -> 214477.9056 | O25: =O22+O23-O24 -> 214477.9056 | Q25: =Q22+Q23-Q24 -> 214477.9056 | S25: =S22+S23-S24 -> 214477.9056
C27: Accumulated Depreciation
D28: Opening Balance | K28: =I31 -> -5644.155411 | M28: =K31 -> -11288.31082 | O28: =M31 -> -16932.46623 | Q28: =O31 -> -22576.62164 | S28: =Q31 -> -28704.5618
D29: Amortization expense during year | I29: =IF(ISERROR(-(I23/('3. Cost_of_Service_Parameters'!M45)+MIN((I22/'3. Cost_of_Service_Parameters'!M45),(I22+I28)))), 0, -(I23/('3. Cost_of_Service_Parameters'!M45)+MIN((I22/'3. Cost_of_Service_Parameters'!M45),(I22+I28)))) -> -5644.155411 | K29: =IF(ISERROR(-(K23/('3. Cost_of_Service_Parameters'!O45)+MIN((K22/'3. Cost_of_Service_Parameters'!O45),(K22+K28)))), 0, -(K23/('3. Cost_of_Service_Parameters'!O45)+MIN((K22/'3. Cost_of_Service_Parameters'!O45),(K22+K28)))) -> -5644.155411 | M29: =IF(ISERROR(-(M23/('3. Cost_of_Service_Parameters'!Q45)+MIN((M22/'3. Cost_of_Service_Parameters'!Q45),(M22+M28)))), 0, -(M23/('3. Cost_of_Service_Parameters'!Q45)+MIN((M22/'3. Cost_of_Service_Parameters'!Q45),(M22+M28)))) -> -5644.155411 | O29: =IF(ISERROR(-(O23/('3. Cost_of_Service_Parameters'!S45)+MIN((O22/'3. Cost_of_Service_Parameters'!S45),(O22+O28)))), 0, -(O23/('3. Cost_of_Service_Parameters'!S45)+MIN((O22/'3. Cost_of_Service_Parameters'!S45),(O22+O28)))) -> -5644.155411 | Q29: =IF(ISERROR(-(Q23/('3. Cost_of_Service_Parameters'!U45)+MIN((Q22/'3. Cost_of_Service_Parameters'!U45),(Q22+Q28)))), 0, -(Q23/('3. Cost_of_Service_Parameters'!U45)+MIN((Q22/'3. Cost_of_Service_Parameters'!U45),(Q22+Q28)))) -> -6127.94016 | S29: =IF(ISERROR(-(S23/('3. Cost_of_Service_Parameters'!W45)+MIN((S22/'3. Cost_of_Service_Parameters'!W45),(S22+S28)))), 0, -(S23/('3. Cost_of_Service_Parameters'!W45)+MIN((S22/'3. Cost_of_Service_Parameters'!W45),(S22+S28)))) -> -6127.94016
D30: Retirements/Removals (if applicable)
D31: Closing Balance | I31: =I28+I29-I30 -> -5644.155411 | K31: =K28+K29-K30 -> -11288.31082 | M31: =M28+M29-M30 -> -16932.46623 | O31: =O28+O29-O30 -> -22576.62164 | Q31: =Q28+Q29-Q30 -> -28704.5618 | S31: =S28+S29-S30 -> -34832.50196
C33: Net Book Value
D34: Opening Balance | I34: =I22+I28 -> 0 | K34: 208833.7502 | M34: =M22+M28 -> 203189.5948 | O34: 197545.4394 | Q34: =Q22+Q28 -> 191901.284 | S34: =S22+S28 -> 185773.3438
D35: Closing Balance | I35: =I25+I31 -> 208833.7502 | K35: =K25+K31 -> 203189.5948 | M35: =M25+M31 -> 197545.4394 | O35: =O25+O31 -> 191901.284 | Q35: =Q25+Q31 -> 185773.3438 | S35: =S25+S31 -> 179645.4036
D36: Incremental CAPEX | I36: =I35 -> 208833.7502 | K36: =K35 -> 203189.5948 | M36: =M35 -> 197545.4394 | O36: =O35 -> 191901.284 | Q36: =Q35 -> 185773.3438 | S36: =S35 -> 179645.4036
B38: Net Fixed Assets - Concrete Poles
C40: Gross Book Value
D41: Opening Balance | K41: =I44 -> 1310698.312 | M41: =K44 -> 1310698.312 | O41: =M44 -> 1310698.312 | Q41: =O44 -> 1310698.312 | S41: =Q44 -> 1310698.312
D42: Capital Additions during year (from ICM Costs) | I42: ='2. ICM_Costs'!G184 -> 1310698.312 | K42: ='2. ICM_Costs'!I184 -> 0 | O42: ='2. ICM_Costs'!M184 -> 0 | Q42: ='2. ICM_Costs'!O184 -> 0 | S42: ='2. ICM_Costs'!Q184 -> 0
D43: Retirements/Removals (if applicable)
D44: Closing Balance | I44: =I41+I42-I43 -> 1310698.312 | K44: =K41+K42-K43 -> 1310698.312 | M44: =M41+M42-M43 -> 1310698.312 | O44: =O41+O42-O43 -> 1310698.312 | Q44: =Q41+Q42-Q43 -> 1310698.312 | S44: =S41+S42-S43 -> 1310698.312
C46: Accumulated Depreciation
D47: Opening Balance | K47: =I50 -> -25699.9669 | M47: =K50 -> -51399.9338 | O47: =M50 -> -77099.90071 | Q47: =O50 -> -102799.8676 | S47: =Q50 -> -124644.8395
D48: Amortization expense during year | I48: =IF(ISERROR(-(I42/('3. Cost_of_Service_Parameters'!M47)+MIN((I41/'3. Cost_of_Service_Parameters'!M47),(I41+I47)))), 0, -(I42/('3. Cost_of_Service_Parameters'!M47)+MIN((I41/'3. Cost_of_Service_Parameters'!M47),(I41+I47)))) -> -25699.9669 | K48: =IF(ISERROR(-(K42/('3. Cost_of_Service_Parameters'!O47)+MIN((K41/'3. Cost_of_Service_Parameters'!O47),(K41+K47)))), 0, -(K42/('3. Cost_of_Service_Parameters'!O47)+MIN((K41/'3. Cost_of_Service_Parameters'!O47),(K41+K47)))) -> -25699.9669 | M48: =IF(ISERROR(-(M42/('3. Cost_of_Service_Parameters'!Q47)+MIN((M41/'3. Cost_of_Service_Parameters'!Q47),(M41+M47)))), 0, -(M42/('3. Cost_of_Service_Parameters'!Q47)+MIN((M41/'3. Cost_of_Service_Parameters'!Q47),(M41+M47)))) -> -25699.9669 | O48: =IF(ISERROR(-(O42/('3. Cost_of_Service_Parameters'!S47)+MIN((O41/'3. Cost_of_Service_Parameters'!S47),(O41+O47)))), 0, -(O42/('3. Cost_of_Service_Parameters'!S47)+MIN((O41/'3. Cost_of_Service_Parameters'!S47),(O41+O47)))) -> -25699.9669 | Q48: =IF(ISERROR(-(Q42/('3. Cost_of_Service_Parameters'!U47)+MIN((Q41/'3. Cost_of_Service_Parameters'!U47),(Q41+Q47)))), 0, -(Q42/('3. Cost_of_Service_Parameters'!U47)+MIN((Q41/'3. Cost_of_Service_Parameters'!U47),(Q41+Q47)))) -> -21844.97187 | S48: =IF(ISERROR(-(S42/('3. Cost_of_Service_Parameters'!W47)+MIN((S41/'3. Cost_of_Service_Parameters'!W47),(S41+S47)))), 0, -(S42/('3. Cost_of_Service_Parameters'!W47)+MIN((S41/'3. Cost_of_Service_Parameters'!W47),(S41+S47)))) -> -21844.97187
D49: Retirements/Removals (if applicable)
D50: Closing Balance | I50: =I47+I48-I49 -> -25699.9669 | K50: =K47+K48-K49 -> -51399.9338 | M50: =M47+M48-M49 -> -77099.90071 | O50: =O47+O48-O49 -> -102799.8676 | Q50: =Q47+Q48-Q49 -> -124644.8395 | S50: =S47+S48-S49 -> -146489.8113
C52: Net Book Value
D53: Opening Balance | I53: =I41+I47 -> 0 | K53: 1284998.345 | M53: =M41+M47 -> 1259298.378 | O53: 1233598.411 | Q53: =Q41+Q47 -> 1207898.444 | S53: =S41+S47 -> 1186053.473
D54: Closing Balance | I54: =I44+I50 -> 1284998.345 | K54: =K44+K50 -> 1259298.378 | M54: =M44+M50 -> 1233598.411 | O54: =O44+O50 -> 1207898.444 | Q54: =Q44+Q50 -> 1186053.473 | S54: =S44+S50 -> 1164208.501
D55: Incremental CAPEX | I55: =I54 -> 1284998.345 | K55: =K54 -> 1259298.378 | M55: =M54 -> 1233598.411 | O55: =O54 -> 1207898.444 | Q55: =Q54 -> 1186053.473 | S55: =S54 -> 1164208.501
B57: Net Fixed Assets - OH Transformers
C59: Gross Book Value
D60: Opening Balance | K60: =I63 -> 238308.784 | M60: =K63 -> 238308.784 | O60: =M63 -> 238308.784 | Q60: =O63 -> 238308.784 | S60: =Q63 -> 238308.784
D61: Capital Additions during year (from ICM Costs) | I61: ='2. ICM_Costs'!G188 -> 238308.784 | K61: ='2. ICM_Costs'!I186 -> 0 | M61: ='2. ICM_Costs'!K186 -> 0 | O61: ='2. ICM_Costs'!M186 -> 0 | Q61: ='2. ICM_Costs'!O186 -> 0 | S61: ='2. ICM_Costs'!Q186 -> 0
D62: Retirements/Removals (if applicable)
D63: Closing Balance | I63: =I60+I61-I62 -> 238308.784 | K63: =K60+K61-K62 -> 238308.784 | M63: =M60+M61-M62 -> 238308.784 | O63: =O60+O61-O62 -> 238308.784 | Q63: =Q60+Q61-Q62 -> 238308.784 | S63: =S60+S61-S62 -> 238308.784
C65: Accumulated Depreciation
D66: Opening Balance | K66: =I69 -> -5812.409366 | M66: =K69 -> -11624.81873 | O66: =M69 -> -17437.2281 | Q66: =O69 -> -23249.63746 | S66: =Q69 -> -28545.38822
D67: Amortization expense during year | I67: =IF(ISERROR(-(I61/('3. Cost_of_Service_Parameters'!M51)+MIN((I60/'3. Cost_of_Service_Parameters'!M51),(I60+I66)))), 0, -(I61/('3. Cost_of_Service_Parameters'!M51)+MIN((I60/'3. Cost_of_Service_Parameters'!M51),(I60+I66)))) -> -5812.409366 | K67: =IF(ISERROR(-(K61/('3. Cost_of_Service_Parameters'!O51)+MIN((K60/'3. Cost_of_Service_Parameters'!O51),(K60+K66)))), 0, -(K61/('3. Cost_of_Service_Parameters'!O51)+MIN((K60/'3. Cost_of_Service_Parameters'!O51),(K60+K66)))) -> -5812.409366 | M67: =IF(ISERROR(-(M61/('3. Cost_of_Service_Parameters'!Q51)+MIN((M60/'3. Cost_of_Service_Parameters'!Q51),(M60+M66)))), 0, -(M61/('3. Cost_of_Service_Parameters'!Q51)+MIN((M60/'3. Cost_of_Service_Parameters'!Q51),(M60+M66)))) -> -5812.409366 | O67: =IF(ISERROR(-(O61/('3. Cost_of_Service_Parameters'!S51)+MIN((O60/'3. Cost_of_Service_Parameters'!S51),(O60+O66)))), 0, -(O61/('3. Cost_of_Service_Parameters'!S51)+MIN((O60/'3. Cost_of_Service_Parameters'!S51),(O60+O66)))) -> -5812.409366 | Q67: =IF(ISERROR(-(Q61/('3. Cost_of_Service_Parameters'!U51)+MIN((Q60/'3. Cost_of_Service_Parameters'!U51),(Q60+Q66)))), 0, -(Q61/('3. Cost_of_Service_Parameters'!U51)+MIN((Q60/'3. Cost_of_Service_Parameters'!U51),(Q60+Q66)))) -> -5295.750756 | S67: =IF(ISERROR(-(S61/('3. Cost_of_Service_Parameters'!W51)+MIN((S60/'3. Cost_of_Service_Parameters'!W51),(S60+S66)))), 0, -(S61/('3. Cost_of_Service_Parameters'!W51)+MIN((S60/'3. Cost_of_Service_Parameters'!W51),(S60+S66)))) -> -5295.750756
D68: Retirements/Removals (if applicable)
D69: Closing Balance | I69: =I66+I67-I68 -> -5812.409366 | K69: =K66+K67-K68 -> -11624.81873 | M69: =M66+M67-M68 -> -17437.2281 | O69: =O66+O67-O68 -> -23249.63746 | Q69: =Q66+Q67-Q68 -> -28545.38822 | S69: =S66+S67-S68 -> -33841.13897
C71: Net Book Value
D72: Opening Balance | I72: =I60+I66 -> 0 | K72: 232496.3746 | M72: =M60+M66 -> 226683.9653 | O72: 220871.5559 | Q72: =Q60+Q66 -> 215059.1465 | S72: =S60+S66 -> 209763.3958
D73: Closing Balance | I73: =I63+I69 -> 232496.3746 | K73: =K63+K69 -> 226683.9653 | M73: =M63+M69 -> 220871.5559 | O73: =O63+O69 -> 215059.1465 | Q73: =Q63+Q69 -> 209763.3958 | S73: =S63+S69 -> 204467.645
D74: Incremental CAPEX | I74: =I73 -> 232496.3746 | K74: =K73 -> 226683.9653 | M74: =M73 -> 220871.5559 | O74: =O73 -> 215059.1465 | Q74: =Q73 -> 209763.3958 | S74: =S73 -> 204467.645
B76: Net Fixed Assets - OH Prim Cond & Dev
C78: Gross Book Value
D79: Opening Balance | K79: =I82 -> 357463.176 | M79: =K82 -> 357463.176 | O79: =M82 -> 357463.176 | Q79: =O82 -> 357463.176 | S79: =Q82 -> 357463.176
D80: Capital Additions during year (from ICM Costs) | I80: ='2. ICM_Costs'!G190 -> 357463.176 | K80: ='2. ICM_Costs'!I188 -> 0 | O80: ='2. ICM_Costs'!M188 -> 0 | Q80: ='2. ICM_Costs'!O188 -> 0 | S80: ='2. ICM_Costs'!Q188 -> 0
D81: Retirements/Removals (if applicable)
D82: Closing Balance | I82: =I79+I80-I81 -> 357463.176 | K82: =K79+K80-K81 -> 357463.176 | M82: =M79+M80-M81 -> 357463.176 | O82: =O79+O80-O81 -> 357463.176 | Q82: =Q79+Q80-Q81 -> 357463.176 | S82: =S79+S80-S81 -> 357463.176
C84: Accumulated Depreciation
D85: Opening Balance | K85: =I88 -> -7943.626133 | M85: =K88 -> -15887.25227 | O85: =M88 -> -23830.8784 | Q85: =O88 -> -31774.50453 | S85: =Q88 -> -38923.76805
D86: Amortization expense during year | I86: =IF(ISERROR(-(I80/('3. Cost_of_Service_Parameters'!M53)+MIN((I79/'3. Cost_of_Service_Parameters'!M53),(I79+I85)))), 0, -(I80/('3. Cost_of_Service_Parameters'!M53)+MIN((I79/'3. Cost_of_Service_Parameters'!M53),(I79+I85)))) -> -7943.626133 | K86: =IF(ISERROR(-(K80/('3. Cost_of_Service_Parameters'!O53)+MIN((K79/'3. Cost_of_Service_Parameters'!O53),(K79+K85)))), 0, -(K80/('3. Cost_of_Service_Parameters'!O53)+MIN((K79/'3. Cost_of_Service_Parameters'!O53),(K79+K85)))) -> -7943.626133 | M86: =IF(ISERROR(-(M80/('3. Cost_of_Service_Parameters'!Q53)+MIN((M79/'3. Cost_of_Service_Parameters'!Q53),(M79+M85)))), 0, -(M80/('3. Cost_of_Service_Parameters'!Q53)+MIN((M79/'3. Cost_of_Service_Parameters'!Q53),(M79+M85)))) -> -7943.626133 | O86: =IF(ISERROR(-(O80/('3. Cost_of_Service_Parameters'!S53)+MIN((O79/'3. Cost_of_Service_Parameters'!S53),(O79+O85)))), 0, -(O80/('3. Cost_of_Service_Parameters'!S53)+MIN((O79/'3. Cost_of_Service_Parameters'!S53),(O79+O85)))) -> -7943.626133 | Q86: =IF(ISERROR(-(Q80/('3. Cost_of_Service_Parameters'!U53)+MIN((Q79/'3. Cost_of_Service_Parameters'!U53),(Q79+Q85)))), 0, -(Q80/('3. Cost_of_Service_Parameters'!U53)+MIN((Q79/'3. Cost_of_Service_Parameters'!U53),(Q79+Q85)))) -> -7149.26352 | S86: =IF(ISERROR(-(S80/('3. Cost_of_Service_Parameters'!W53)+MIN((S79/'3. Cost_of_Service_Parameters'!W53),(S79+S85)))), 0, -(S80/('3. Cost_of_Service_Parameters'!W53)+MIN((S79/'3. Cost_of_Service_Parameters'!W53),(S79+S85)))) -> -7149.26352
D87: Retirements/Removals (if applicable)
D88: Closing Balance | I88: =I85+I86-I87 -> -7943.626133 | K88: =K85+K86-K87 -> -15887.25227 | M88: =M85+M86-M87 -> -23830.8784 | O88: =O85+O86-O87 -> -31774.50453 | Q88: =Q85+Q86-Q87 -> -38923.76805 | S88: =S85+S86-S87 -> -46073.03157
C90: Net Book Value
D91: Opening Balance | I91: =I79+I85 -> 0 | K91: 349519.5499 | M91: =M79+M85 -> 341575.9237 | O91: 333632.2976 | Q91: =Q79+Q85 -> 325688.6715 | S91: =S79+S85 -> 318539.4079
D92: Closing Balance | I92: =I82+I88 -> 349519.5499 | K92: =K82+K88 -> 341575.9237 | M92: =M82+M88 -> 333632.2976 | O92: =O82+O88 -> 325688.6715 | Q92: =Q82+Q88 -> 318539.4079 | S92: =S82+S88 -> 311390.1444
D93: Incremental CAPEX | I93: =I92 -> 349519.5499 | K93: =K92 -> 341575.9237 | M93: =M92 -> 333632.2976 | O93: =O92 -> 325688.6715 | Q93: =Q92 -> 318539.4079 | S93: =S92 -> 311390.1444
B95: Net Fixed Assets - OH Sec Cond & Dev
C97: Gross Book Value
D98: Opening Balance | K98: =I101 -> 119154.392 | M98: =K101 -> 119154.392 | O98: =M101 -> 119154.392 | Q98: =O101 -> 119154.392 | S98: =Q101 -> 119154.392
D99: Capital Additions during year (from ICM Costs) | I99: ='2. ICM_Costs'!G192 -> 119154.392 | K99: ='2. ICM_Costs'!I190 -> 0 | O99: ='2. ICM_Costs'!M190 -> 0 | Q99: ='2. ICM_Costs'!O190 -> 0 | S99: ='2. ICM_Costs'!Q190 -> 0
D100: Retirements/Removals (if applicable)
D101: Closing Balance | I101: =I98+I99-I100 -> 119154.392 | K101: =K98+K99-K100 -> 119154.392 | M101: =M98+M99-M100 -> 119154.392 | O101: =O98+O99-O100 -> 119154.392 | Q101: =Q98+Q99-Q100 -> 119154.392 | S101: =S98+S99-S100 -> 119154.392
C103: Accumulated Depreciation
D104: Opening Balance | K104: =I107 -> -2482.383167 | M104: =K107 -> -4964.766333 | O104: =M107 -> -7447.1495 | Q104: =O107 -> -9929.532667 | S104: =Q107 -> -12312.62051
D105: Amortization expense during year | I105: =IF(ISERROR(-(I99/('3. Cost_of_Service_Parameters'!M55)+MIN((I98/'3. Cost_of_Service_Parameters'!M55),(I98+I104)))), 0, -(I99/('3. Cost_of_Service_Parameters'!M55)+MIN((I98/'3. Cost_of_Service_Parameters'!M55),(I98+I104)))) -> -2482.383167 | K105: =IF(ISERROR(-(K99/('3. Cost_of_Service_Parameters'!O55)+MIN((K98/'3. Cost_of_Service_Parameters'!O55),(K98+K104)))), 0, -(K99/('3. Cost_of_Service_Parameters'!O55)+MIN((K98/'3. Cost_of_Service_Parameters'!O55),(K98+K104)))) -> -2482.383167 | M105: =IF(ISERROR(-(M99/('3. Cost_of_Service_Parameters'!Q55)+MIN((M98/'3. Cost_of_Service_Parameters'!Q55),(M98+M104)))), 0, -(M99/('3. Cost_of_Service_Parameters'!Q55)+MIN((M98/'3. Cost_of_Service_Parameters'!Q55),(M98+M104)))) -> -2482.383167 | O105: =IF(ISERROR(-(O99/('3. Cost_of_Service_Parameters'!S55)+MIN((O98/'3. Cost_of_Service_Parameters'!S55),(O98+O104)))), 0, -(O99/('3. Cost_of_Service_Parameters'!S55)+MIN((O98/'3. Cost_of_Service_Parameters'!S55),(O98+O104)))) -> -2482.383167 | Q105: =IF(ISERROR(-(Q99/('3. Cost_of_Service_Parameters'!U55)+MIN((Q98/'3. Cost_of_Service_Parameters'!U55),(Q98+Q104)))), 0, -(Q99/('3. Cost_of_Service_Parameters'!U55)+MIN((Q98/'3. Cost_of_Service_Parameters'!U55),(Q98+Q104)))) -> -2383.08784 | S105: =IF(ISERROR(-(S99/('3. Cost_of_Service_Parameters'!W55)+MIN((S98/'3. Cost_of_Service_Parameters'!W55),(S98+S104)))), 0, -(S99/('3. Cost_of_Service_Parameters'!W55)+MIN((S98/'3. Cost_of_Service_Parameters'!W55),(S98+S104)))) -> -2383.08784
D106: Retirements/Removals (if applicable)
D107: Closing Balance | I107: =I104+I105-I106 -> -2482.383167 | K107: =K104+K105-K106 -> -4964.766333 | M107: =M104+M105-M106 -> -7447.1495 | O107: =O104+O105-O106 -> -9929.532667 | Q107: =Q104+Q105-Q106 -> -12312.62051 | S107: =S104+S105-S106 -> -14695.70835
C109: Net Book Value
D110: Opening Balance | I110: =I98+I104 -> 0 | K110: 116672.0088 | M110: =M98+M104 -> 114189.6257 | O110: 111707.2425 | Q110: =Q98+Q104 -> 109224.8593 | S110: =S98+S104 -> 106841.7715
D111: Closing Balance | I111: =I101+I107 -> 116672.0088 | K111: =K101+K107 -> 114189.6257 | M111: =M101+M107 -> 111707.2425 | O111: =O101+O107 -> 109224.8593 | Q111: =Q101+Q107 -> 106841.7715 | S111: =S101+S107 -> 104458.6837
D112: Incremental CAPEX | I112: =I111 -> 116672.0088 | K112: =K111 -> 114189.6257 | M112: =M111 -> 111707.2425 | O112: =O111 -> 109224.8593 | Q112: =Q111 -> 106841.7715 | S112: =S111 -> 104458.6837
B114: Net Fixed Assets - UG Prim XLPE TR
C116: Gross Book Value
D117: Opening Balance | K117: =I120 -> 71492.6352 | M117: =K120 -> 71492.6352 | O117: =M120 -> 71492.6352 | Q117: =O120 -> 71492.6352 | S117: =Q120 -> 71492.6352
D118: Capital Additions during year (from ICM Costs) | I118: ='2. ICM_Costs'!G198 -> 71492.6352 | K118: ='2. ICM_Costs'!I192 -> 0 | O118: ='2. ICM_Costs'!M192 -> 0 | Q118: ='2. ICM_Costs'!O192 -> 0 | S118: ='2. ICM_Costs'!Q192 -> 0
D119: Retirements/Removals (if applicable)
D120: Closing Balance | I120: =I117+I118-I119 -> 71492.6352 | K120: =K117+K118-K119 -> 71492.6352 | M120: =M117+M118-M119 -> 71492.6352 | O120: =O117+O118-O119 -> 71492.6352 | Q120: =Q117+Q118-Q119 -> 71492.6352 | S120: =S117+S118-S119 -> 71492.6352
C122: Accumulated Depreciation
D123: Opening Balance | K123: =I126 -> -1881.385137 | M123: =K126 -> -3762.770274 | O123: =M126 -> -5644.155411 | Q123: =O126 -> -7525.540547 | S123: =Q126 -> -9114.265774
D124: Amortization expense during year | I124: =IF(ISERROR(-(I118/('3. Cost_of_Service_Parameters'!M61)+MIN((I117/'3. Cost_of_Service_Parameters'!M61),(I117+I123)))), 0, -(I118/('3. Cost_of_Service_Parameters'!M61)+MIN((I117/'3. Cost_of_Service_Parameters'!M61),(I117+I123)))) -> -1881.385137 | K124: =IF(ISERROR(-(K118/('3. Cost_of_Service_Parameters'!O61)+MIN((K117/'3. Cost_of_Service_Parameters'!O61),(K117+K123)))), 0, -(K118/('3. Cost_of_Service_Parameters'!O61)+MIN((K117/'3. Cost_of_Service_Parameters'!O61),(K117+K123)))) -> -1881.385137 | M124: =IF(ISERROR(-(M118/('3. Cost_of_Service_Parameters'!Q61)+MIN((M117/'3. Cost_of_Service_Parameters'!Q61),(M117+M123)))), 0, -(M118/('3. Cost_of_Service_Parameters'!Q61)+MIN((M117/'3. Cost_of_Service_Parameters'!Q61),(M117+M123)))) -> -1881.385137 | O124: =IF(ISERROR(-(O118/('3. Cost_of_Service_Parameters'!S61)+MIN((O117/'3. Cost_of_Service_Parameters'!S61),(O117+O123)))), 0, -(O118/('3. Cost_of_Service_Parameters'!S61)+MIN((O117/'3. Cost_of_Service_Parameters'!S61),(O117+O123)))) -> -1881.385137 | Q124: =IF(ISERROR(-(Q118/('3. Cost_of_Service_Parameters'!U61)+MIN((Q117/'3. Cost_of_Service_Parameters'!U61),(Q117+Q123)))), 0, -(Q118/('3. Cost_of_Service_Parameters'!U61)+MIN((Q117/'3. Cost_of_Service_Parameters'!U61),(Q117+Q123)))) -> -1588.725227 | S124: =IF(ISERROR(-(S118/('3. Cost_of_Service_Parameters'!W61)+MIN((S117/'3. Cost_of_Service_Parameters'!W61),(S117+S123)))), 0, -(S118/('3. Cost_of_Service_Parameters'!W61)+MIN((S117/'3. Cost_of_Service_Parameters'!W61),(S117+S123)))) -> -1588.725227
D125: Retirements/Removals (if applicable)
D126: Closing Balance | I126: =I123+I124-I125 -> -1881.385137 | K126: =K123+K124-K125 -> -3762.770274 | M126: =M123+M124-M125 -> -5644.155411 | O126: =O123+O124-O125 -> -7525.540547 | Q126: =Q123+Q124-Q125 -> -9114.265774 | S126: =S123+S124-S125 -> -10702.991
C128: Net Book Value
D129: Opening Balance | I129: =I117+I123 -> 0 | K129: 69611.25006 | M129: =M117+M123 -> 67729.86493 | O129: 65848.47979 | Q129: =Q117+Q123 -> 63967.09465 | S129: =S117+S123 -> 62378.36943
D130: Closing Balance | I130: =I120+I126 -> 69611.25006 | K130: =K120+K126 -> 67729.86493 | M130: =M120+M126 -> 65848.47979 | O130: =O120+O126 -> 63967.09465 | Q130: =Q120+Q126 -> 62378.36943 | S130: =S120+S126 -> 60789.6442
D131: Incremental CAPEX | I131: =I130 -> 69611.25006 | K131: =K130 -> 67729.86493 | M131: =M130 -> 65848.47979 | O131: =O130 -> 63967.09465 | Q131: =Q130 -> 62378.36943 | S131: =S130 -> 60789.6442
B133: Net Fixed Assets - UG Sec - Dir Buried
C135: Gross Book Value
D136: Opening Balance | K136: =I139 -> 71492.6352 | M136: =K139 -> 71492.6352 | O136: =M139 -> 71492.6352 | Q136: =O139 -> 71492.6352 | S136: =Q139 -> 71492.6352
D137: Capital Additions during year (from ICM Costs) | I137: ='2. ICM_Costs'!G200 -> 71492.6352 | K137: ='2. ICM_Costs'!I194 -> 0 | M137: ='2. ICM_Costs'!K194 -> 0 | O137: ='2. ICM_Costs'!M194 -> 0 | Q137: ='2. ICM_Costs'!O194 -> 0 | S137: ='2. ICM_Costs'!Q194 -> 0
D138: Retirements/Removals (if applicable)
D139: Closing Balance | I139: =I136+I137-I138 -> 71492.6352 | K139: =K136+K137-K138 -> 71492.6352 | M139: =M136+M137-M138 -> 71492.6352 | O139: =O136+O137-O138 -> 71492.6352 | Q139: =Q136+Q137-Q138 -> 71492.6352 | S139: =S136+S137-S138 -> 71492.6352
C141: Accumulated Depreciation
D142: Opening Balance | K142: =I145 -> -2306.214039 | M142: =K145 -> -4612.428077 | O142: =M145 -> -6918.642116 | Q142: =O145 -> -9224.856155 | S142: =Q145 -> -11607.94399
D143: Amortization expense during year | I143: =IF(ISERROR(-(I137/('3. Cost_of_Service_Parameters'!M63)+MIN((I136/'3. Cost_of_Service_Parameters'!M63),(I136+I142)))), 0, -(I137/('3. Cost_of_Service_Parameters'!M63)+MIN((I136/'3. Cost_of_Service_Parameters'!M63),(I136+I142)))) -> -2306.214039 | K143: =IF(ISERROR(-(K137/('3. Cost_of_Service_Parameters'!O63)+MIN((K136/'3. Cost_of_Service_Parameters'!O63),(K136+K142)))), 0, -(K137/('3. Cost_of_Service_Parameters'!O63)+MIN((K136/'3. Cost_of_Service_Parameters'!O63),(K136+K142)))) -> -2306.214039 | M143: =IF(ISERROR(-(M137/('3. Cost_of_Service_Parameters'!Q63)+MIN((M136/'3. Cost_of_Service_Parameters'!Q63),(M136+M142)))), 0, -(M137/('3. Cost_of_Service_Parameters'!Q63)+MIN((M136/'3. Cost_of_Service_Parameters'!Q63),(M136+M142)))) -> -2306.214039 | O143: =IF(ISERROR(-(O137/('3. Cost_of_Service_Parameters'!S63)+MIN((O136/'3. Cost_of_Service_Parameters'!S63),(O136+O142)))), 0, -(O137/('3. Cost_of_Service_Parameters'!S63)+MIN((O136/'3. Cost_of_Service_Parameters'!S63),(O136+O142)))) -> -2306.214039 | Q143: =IF(ISERROR(-(Q137/('3. Cost_of_Service_Parameters'!U63)+MIN((Q136/'3. Cost_of_Service_Parameters'!U63),(Q136+Q142)))), 0, -(Q137/('3. Cost_of_Service_Parameters'!U63)+MIN((Q136/'3. Cost_of_Service_Parameters'!U63),(Q136+Q142)))) -> -2383.08784 | S143: =IF(ISERROR(-(S137/('3. Cost_of_Service_Parameters'!W63)+MIN((S136/'3. Cost_of_Service_Parameters'!W63),(S136+S142)))), 0, -(S137/('3. Cost_of_Service_Parameters'!W63)+MIN((S136/'3. Cost_of_Service_Parameters'!W63),(S136+S142)))) -> -2383.08784
D144: Retirements/Removals (if applicable)
D145: Closing Balance | I145: =I142+I143-I144 -> -2306.214039 | K145: =K142+K143-K144 -> -4612.428077 | M145: =M142+M143-M144 -> -6918.642116 | O145: =O142+O143-O144 -> -9224.856155 | Q145: =Q142+Q143-Q144 -> -11607.94399 | S145: =S142+S143-S144 -> -13991.03183
C147: Net Book Value
D148: Opening Balance | I148: =I136+I142 -> 0 | K148: 69186.42116 | M148: =M136+M142 -> 66880.20712 | O148: 64573.99308 | Q148: =Q136+Q142 -> 62267.77905 | S148: =S136+S142 -> 59884.69121
D149: Closing Balance | I149: =I139+I145 -> 69186.42116 | K149: =K139+K145 -> 66880.20712 | M149: =M139+M145 -> 64573.99308 | O149: =O139+O145 -> 62267.77905 | Q149: =Q139+Q145 -> 59884.69121 | S149: =S139+S145 -> 57501.60337
D150: Incremental CAPEX | I150: =I149 -> 69186.42116 | K150: =K149 -> 66880.20712 | M150: =M149 -> 64573.99308 | O150: =O149 -> 62267.77905 | Q150: =Q149 -> 59884.69121 | S150: =S149 -> 57501.60337
B152: Net Fixed Assets - OH Services
C154: Gross Book Value
D155: Opening Balance
D156: Capital Additions during year (from ICM Costs) | I156: ='2. ICM_Costs'!G196 -> 0 | K156: ='2. ICM_Costs'!I196 -> 0 | M156: ='2. ICM_Costs'!K196 -> 0 | O156: ='2. ICM_Costs'!M196 -> 0 | Q156: ='2. ICM_Costs'!O196 -> 0 | S156: ='2. ICM_Costs'!Q196 -> 0
D157: Retirements/Removals (if applicable)
D158: Closing Balance | I158: =I155+I156-I157 -> 0 | K158: =K155+K156-K157 -> 0 | M158: =M155+M156-M157 -> 0 | O158: =O155+O156-O157 -> 0 | Q158: =Q155+Q156-Q157 -> 0 | S158: =S155+S156-S157 -> 0
C160: Accumulated Depreciation
D161: Opening Balance
D162: Amortization expense during year | I162: =IF(ISERROR(-(I156/('3. Cost_of_Service_Parameters'!G59)+MIN((I155/'3. Cost_of_Service_Parameters'!G59),(I155+I161)))), 0, -(I156/('3. Cost_of_Service_Parameters'!G59)+MIN((I155/'3. Cost_of_Service_Parameters'!G59),(I155+I161)))) -> 0 | K162: =IF(ISERROR(-(K156/('3. Cost_of_Service_Parameters'!I59)+MIN((K155/'3. Cost_of_Service_Parameters'!I59),(K155+K161)))), 0, -(K156/('3. Cost_of_Service_Parameters'!I59)+MIN((K155/'3. Cost_of_Service_Parameters'!I59),(K155+K161)))) -> 0 | M162: =IF(ISERROR(-(M156/('3. Cost_of_Service_Parameters'!K59)+MIN((M155/'3. Cost_of_Service_Parameters'!K59),(M155+M161)))), 0, -(M156/('3. Cost_of_Service_Parameters'!K59)+MIN((M155/'3. Cost_of_Service_Parameters'!K59),(M155+M161)))) -> 0 | O162: =IF(ISERROR(-(O156/('3. Cost_of_Service_Parameters'!M59)+MIN((O155/'3. Cost_of_Service_Parameters'!M59),(O155+O161)))), 0, -(O156/('3. Cost_of_Service_Parameters'!M59)+MIN((O155/'3. Cost_of_Service_Parameters'!M59),(O155+O161)))) -> 0 | Q162: =IF(ISERROR(-(Q156/('3. Cost_of_Service_Parameters'!O59)+MIN((Q155/'3. Cost_of_Service_Parameters'!O59),(Q155+Q161)))), 0, -(Q156/('3. Cost_of_Service_Parameters'!O59)+MIN((Q155/'3. Cost_of_Service_Parameters'!O59),(Q155+Q161)))) -> 0 | S162: =IF(ISERROR(-(S156/('3. Cost_of_Service_Parameters'!Q59)+MIN((S155/'3. Cost_of_Service_Parameters'!Q59),(S155+S161)))), 0, -(S156/('3. Cost_of_Service_Parameters'!Q59)+MIN((S155/'3. Cost_of_Service_Parameters'!Q59),(S155+S161)))) -> 0
D163: Retirements/Removals (if applicable)
D164: Closing Balance | I164: =I161+I162-I163 -> 0 | K164: =K161+K162-K163 -> 0 | M164: =M161+M162-M163 -> 0 | O164: =O161+O162-O163 -> 0 | Q164: =Q161+Q162-Q163 -> 0 | S164: =S161+S162-S163 -> 0
C166: Net Book Value
D167: Opening Balance | I167: =I155+I161 -> 0 | K167: 0 | M167: =M155+M161 -> 0 | O167: 0 | Q167: =Q155+Q161 -> 0 | S167: =S155+S161 -> 0
D168: Closing Balance | I168: =I158+I164 -> 0 | K168: =K158+K164 -> 0 | M168: =M158+M164 -> 0 | O168: =O158+O164 -> 0 | Q168: =Q158+Q164 -> 0 | S168: =S158+S164 -> 0
D169: Incremental CAPEX | I169: =I168 -> 0 | K169: =K168 -> 0 | M169: =M168 -> 0 | O169: =O168 -> 0 | Q169: =Q168 -> 0 | S169: =S168 -> 0
B171: Net Fixed Assets - RTUs
C173: Gross Book Value
D174: Opening Balance
D175: Capital Additions during year (from ICM Costs) | K175: ='2. ICM_Costs'!I198 -> 0 | O175: ='2. ICM_Costs'!M198 -> 0 | Q175: ='2. ICM_Costs'!O198 -> 0 | S175: ='2. ICM_Costs'!Q198 -> 0
D176: Retirements/Removals (if applicable)
D177: Closing Balance | I177: =I174+I175-I176 -> 0 | K177: =K174+K175-K176 -> 0 | M177: =M174+M175-M176 -> 0 | O177: =O174+O175-O176 -> 0 | Q177: =Q174+Q175-Q176 -> 0 | S177: =S174+S175-S176 -> 0
C179: Accumulated Depreciation
D180: Opening Balance
D181: Amortization expense during year | I181: =IF(ISERROR(-(I175/('3. Cost_of_Service_Parameters'!G61)+MIN((I174/'3. Cost_of_Service_Parameters'!G61),(I174+I180)))), 0, -(I175/('3. Cost_of_Service_Parameters'!G61)+MIN((I174/'3. Cost_of_Service_Parameters'!G61),(I174+I180)))) -> 0 | K181: =IF(ISERROR(-(K175/('3. Cost_of_Service_Parameters'!I61)+MIN((K174/'3. Cost_of_Service_Parameters'!I61),(K174+K180)))), 0, -(K175/('3. Cost_of_Service_Parameters'!I61)+MIN((K174/'3. Cost_of_Service_Parameters'!I61),(K174+K180)))) -> 0 | M181: =IF(ISERROR(-(M175/('3. Cost_of_Service_Parameters'!K61)+MIN((M174/'3. Cost_of_Service_Parameters'!K61),(M174+M180)))), 0, -(M175/('3. Cost_of_Service_Parameters'!K61)+MIN((M174/'3. Cost_of_Service_Parameters'!K61),(M174+M180)))) -> 0 | O181: =IF(ISERROR(-(O175/('3. Cost_of_Service_Parameters'!M61)+MIN((O174/'3. Cost_of_Service_Parameters'!M61),(O174+O180)))), 0, -(O175/('3. Cost_of_Service_Parameters'!M61)+MIN((O174/'3. Cost_of_Service_Parameters'!M61),(O174+O180)))) -> 0 | Q181: =IF(ISERROR(-(Q175/('3. Cost_of_Service_Parameters'!O61)+MIN((Q174/'3. Cost_of_Service_Parameters'!O61),(Q174+Q180)))), 0, -(Q175/('3. Cost_of_Service_Parameters'!O61)+MIN((Q174/'3. Cost_of_Service_Parameters'!O61),(Q174+Q180)))) -> 0 | S181: =IF(ISERROR(-(S175/('3. Cost_of_Service_Parameters'!Q61)+MIN((S174/'3. Cost_of_Service_Parameters'!Q61),(S174+S180)))), 0, -(S175/('3. Cost_of_Service_Parameters'!Q61)+MIN((S174/'3. Cost_of_Service_Parameters'!Q61),(S174+S180)))) -> 0
D182: Retirements/Removals (if applicable)
D183: Closing Balance | I183: =I180+I181-I182 -> 0 | K183: =K180+K181-K182 -> 0 | M183: =M180+M181-M182 -> 0 | O183: =O180+O181-O182 -> 0 | Q183: =Q180+Q181-Q182 -> 0 | S183: =S180+S181-S182 -> 0
C185: Net Book Value
D186: Opening Balance | I186: =I174+I180 -> 0 | K186: 0 | M186: =M174+M180 -> 0 | O186: 0 | Q186: =Q174+Q180 -> 0 | S186: =S174+S180 -> 0
D187: Closing Balance | I187: =I177+I183 -> 0 | K187: =K177+K183 -> 0 | M187: =M177+M183 -> 0 | O187: =O177+O183 -> 0 | Q187: =Q177+Q183 -> 0 | S187: =S177+S183 -> 0
D188: Incremental CAPEX | I188: =I187 -> 0 | K188: =K187 -> 0 | M188: =M187 -> 0 | O188: =O187 -> 0 | Q188: =Q187 -> 0 | S188: =S187 -> 0
B191: Net Fixed Assets - System Supervisory Equipment
C193: Gross Book Value
D194: Opening Balance
D195: Capital Additions during year (from ICM Costs) | K195: ='2. ICM_Costs'!I200 -> 0 | O195: ='2. ICM_Costs'!M200 -> 0 | Q195: ='2. ICM_Costs'!O200 -> 0 | S195: ='2. ICM_Costs'!Q200 -> 0
D196: Retirements/Removals (if applicable)
D197: Closing Balance | I197: =I194+I195-I196 -> 0 | K197: =K194+K195-K196 -> 0 | M197: =M194+M195-M196 -> 0 | O197: =O194+O195-O196 -> 0 | Q197: =Q194+Q195-Q196 -> 0 | S197: =S194+S195-S196 -> 0
C199: Accumulated Depreciation
D200: Opening Balance
D201: Amortization expense during year | I201: =IF(ISERROR(-(I195/('3. Cost_of_Service_Parameters'!G63)+MIN((I194/'3. Cost_of_Service_Parameters'!G63),(I194+I200)))), 0, -(I195/('3. Cost_of_Service_Parameters'!G63)+MIN((I194/'3. Cost_of_Service_Parameters'!G63),(I194+I200)))) -> 0 | K201: =IF(ISERROR(-(K195/('3. Cost_of_Service_Parameters'!I63)+MIN((K194/'3. Cost_of_Service_Parameters'!I63),(K194+K200)))), 0, -(K195/('3. Cost_of_Service_Parameters'!I63)+MIN((K194/'3. Cost_of_Service_Parameters'!I63),(K194+K200)))) -> 0 | M201: =IF(ISERROR(-(M195/('3. Cost_of_Service_Parameters'!K63)+MIN((M194/'3. Cost_of_Service_Parameters'!K63),(M194+M200)))), 0, -(M195/('3. Cost_of_Service_Parameters'!K63)+MIN((M194/'3. Cost_of_Service_Parameters'!K63),(M194+M200)))) -> 0 | O201: =IF(ISERROR(-(O195/('3. Cost_of_Service_Parameters'!M63)+MIN((O194/'3. Cost_of_Service_Parameters'!M63),(O194+O200)))), 0, -(O195/('3. Cost_of_Service_Parameters'!M63)+MIN((O194/'3. Cost_of_Service_Parameters'!M63),(O194+O200)))) -> 0 | Q201: =IF(ISERROR(-(Q195/('3. Cost_of_Service_Parameters'!O63)+MIN((Q194/'3. Cost_of_Service_Parameters'!O63),(Q194+Q200)))), 0, -(Q195/('3. Cost_of_Service_Parameters'!O63)+MIN((Q194/'3. Cost_of_Service_Parameters'!O63),(Q194+Q200)))) -> 0 | S201: =IF(ISERROR(-(S195/('3. Cost_of_Service_Parameters'!Q63)+MIN((S194/'3. Cost_of_Service_Parameters'!Q63),(S194+S200)))), 0, -(S195/('3. Cost_of_Service_Parameters'!Q63)+MIN((S194/'3. Cost_of_Service_Parameters'!Q63),(S194+S200)))) -> 0
D202: Retirements/Removals (if applicable)
D203: Closing Balance | I203: =I200+I201-I202 -> 0 | K203: =K200+K201-K202 -> 0 | M203: =M200+M201-M202 -> 0 | O203: =O200+O201-O202 -> 0 | Q203: =Q200+Q201-Q202 -> 0 | S203: =S200+S201-S202 -> 0
C205: Net Book Value
D206: Opening Balance | I206: =I194+I200 -> 0 | K206: 0 | M206: =M194+M200 -> 0 | O206: 0 | Q206: =Q194+Q200 -> 0 | S206: =S194+S200 -> 0
D207: Closing Balance | I207: =I197+I203 -> 0 | K207: =K197+K203 -> 0 | M207: =M197+M203 -> 0 | O207: =O197+O203 -> 0 | Q207: =Q197+Q203 -> 0 | S207: =S197+S203 -> 0
D208: Incremental CAPEX | I208: =I207 -> 0 | K208: =K207 -> 0 | M208: =M207 -> 0 | O208: =O207 -> 0 | Q208: =Q207 -> 0 | S208: =S207 -> 0
B211: Net Fixed Assets - Distribution Station Equipment
C213: Gross Book Value
D214: Opening Balance
D215: Capital Additions during year (from ICM Costs) | I215: ='2. ICM_Costs'!G202 -> 0 | K215: ='2. ICM_Costs'!I202 -> 0 | M215: ='2. ICM_Costs'!K202 -> 0 | O215: ='2. ICM_Costs'!M202 -> 0 | Q215: ='2. ICM_Costs'!O202 -> 0 | S215: ='2. ICM_Costs'!Q202 -> 0
D216: Retirements/Removals (if applicable)
D217: Closing Balance | I217: =I214+I215-I216 -> 0 | K217: =K214+K215-K216 -> 0 | M217: =M214+M215-M216 -> 0 | O217: =O214+O215-O216 -> 0 | Q217: =Q214+Q215-Q216 -> 0 | S217: =S214+S215-S216 -> 0
C219: Accumulated Depreciation
D220: Opening Balance
D221: Amortization expense during year | I221: =IF(ISERROR(-(I215/('3. Cost_of_Service_Parameters'!G65)+MIN((I214/'3. Cost_of_Service_Parameters'!G65),(I214+I220)))), 0, -(I215/('3. Cost_of_Service_Parameters'!G65)+MIN((I214/'3. Cost_of_Service_Parameters'!G65),(I214+I220)))) -> 0 | K221: =IF(ISERROR(-(K215/('3. Cost_of_Service_Parameters'!I65)+MIN((K214/'3. Cost_of_Service_Parameters'!I65),(K214+K220)))), 0, -(K215/('3. Cost_of_Service_Parameters'!I65)+MIN((K214/'3. Cost_of_Service_Parameters'!I65),(K214+K220)))) -> 0 | M221: =IF(ISERROR(-(M215/('3. Cost_of_Service_Parameters'!K65)+MIN((M214/'3. Cost_of_Service_Parameters'!K65),(M214+M220)))), 0, -(M215/('3. Cost_of_Service_Parameters'!K65)+MIN((M214/'3. Cost_of_Service_Parameters'!K65),(M214+M220)))) -> 0 | O221: =IF(ISERROR(-(O215/('3. Cost_of_Service_Parameters'!M65)+MIN((O214/'3. Cost_of_Service_Parameters'!M65),(O214+O220)))), 0, -(O215/('3. Cost_of_Service_Parameters'!M65)+MIN((O214/'3. Cost_of_Service_Parameters'!M65),(O214+O220)))) -> 0 | Q221: =IF(ISERROR(-(Q215/('3. Cost_of_Service_Parameters'!O65)+MIN((Q214/'3. Cost_of_Service_Parameters'!O65),(Q214+Q220)))), 0, -(Q215/('3. Cost_of_Service_Parameters'!O65)+MIN((Q214/'3. Cost_of_Service_Parameters'!O65),(Q214+Q220)))) -> 0 | S221: =IF(ISERROR(-(S215/('3. Cost_of_Service_Parameters'!Q65)+MIN((S214/'3. Cost_of_Service_Parameters'!Q65),(S214+S220)))), 0, -(S215/('3. Cost_of_Service_Parameters'!Q65)+MIN((S214/'3. Cost_of_Service_Parameters'!Q65),(S214+S220)))) -> 0
D222: Retirements/Removals (if applicable)
D223: Closing Balance | I223: =I220+I221-I222 -> 0 | K223: =K220+K221-K222 -> 0 | M223: =M220+M221-M222 -> 0 | O223: =O220+O221-O222 -> 0 | Q223: =Q220+Q221-Q222 -> 0 | S223: =S220+S221-S222 -> 0
C225: Net Book Value
D226: Opening Balance | I226: =I214+I220 -> 0 | K226: 0 | M226: =M214+M220 -> 0 | O226: 0 | Q226: =Q214+Q220 -> 0 | S226: =S214+S220 -> 0
D227: Closing Balance | I227: =I217+I223 -> 0 | K227: =K217+K223 -> 0 | M227: =M217+M223 -> 0 | O227: =O217+O223 -> 0 | Q227: =Q217+Q223 -> 0 | S227: =S217+S223 -> 0
D228: Incremental CAPEX | I228: =I227 -> 0 | K228: =K227 -> 0 | M228: =M227 -> 0 | O228: =O227 -> 0 | Q228: =Q227 -> 0 | S228: =S227 -> 0
B231: Net Fixed Assets - Transformer Station Equipment
C233: Gross Book Value
D234: Opening Balance
D235: Capital Additions during year (from ICM Costs) | I235: ='2. ICM_Costs'!G204 -> 0 | K235: ='2. ICM_Costs'!I204 -> 0 | M235: ='2. ICM_Costs'!K204 -> 0 | O235: ='2. ICM_Costs'!M204 -> 0 | Q235: ='2. ICM_Costs'!O204 -> 0 | S235: ='2. ICM_Costs'!Q204 -> 0
D236: Retirements/Removals (if applicable)
D237: Closing Balance | I237: =I234+I235-I236 -> 0 | K237: =K234+K235-K236 -> 0 | M237: =M234+M235-M236 -> 0 | O237: =O234+O235-O236 -> 0 | Q237: =Q234+Q235-Q236 -> 0 | S237: =S234+S235-S236 -> 0
C239: Accumulated Depreciation
D240: Opening Balance
D241: Amortization expense during year | I241: =IF(ISERROR(-(I235/('3. Cost_of_Service_Parameters'!G67)+MIN((I234/'3. Cost_of_Service_Parameters'!G67),(I234+I240)))), 0, -(I235/('3. Cost_of_Service_Parameters'!G67)+MIN((I234/'3. Cost_of_Service_Parameters'!G67),(I234+I240)))) -> 0 | K241: =IF(ISERROR(-(K235/('3. Cost_of_Service_Parameters'!I67)+MIN((K234/'3. Cost_of_Service_Parameters'!I67),(K234+K240)))), 0, -(K235/('3. Cost_of_Service_Parameters'!I67)+MIN((K234/'3. Cost_of_Service_Parameters'!I67),(K234+K240)))) -> 0 | M241: =IF(ISERROR(-(M235/('3. Cost_of_Service_Parameters'!K67)+MIN((M234/'3. Cost_of_Service_Parameters'!K67),(M234+M240)))), 0, -(M235/('3. Cost_of_Service_Parameters'!K67)+MIN((M234/'3. Cost_of_Service_Parameters'!K67),(M234+M240)))) -> 0 | O241: =IF(ISERROR(-(O235/('3. Cost_of_Service_Parameters'!M67)+MIN((O234/'3. Cost_of_Service_Parameters'!M67),(O234+O240)))), 0, -(O235/('3. Cost_of_Service_Parameters'!M67)+MIN((O234/'3. Cost_of_Service_Parameters'!M67),(O234+O240)))) -> 0 | Q241: =IF(ISERROR(-(Q235/('3. Cost_of_Service_Parameters'!O67)+MIN((Q234/'3. Cost_of_Service_Parameters'!O67),(Q234+Q240)))), 0, -(Q235/('3. Cost_of_Service_Parameters'!O67)+MIN((Q234/'3. Cost_of_Service_Parameters'!O67),(Q234+Q240)))) -> 0 | S241: =IF(ISERROR(-(S235/('3. Cost_of_Service_Parameters'!Q67)+MIN((S234/'3. Cost_of_Service_Parameters'!Q67),(S234+S240)))), 0, -(S235/('3. Cost_of_Service_Parameters'!Q67)+MIN((S234/'3. Cost_of_Service_Parameters'!Q67),(S234+S240)))) -> 0
D242: Retirements/Removals (if applicable)
D243: Closing Balance | I243: =I240+I241-I242 -> 0 | K243: =K240+K241-K242 -> 0 | M243: =M240+M241-M242 -> 0 | O243: =O240+O241-O242 -> 0 | Q243: =Q240+Q241-Q242 -> 0 | S243: =S240+S241-S242 -> 0
C245: Net Book Value
D246: Opening Balance | I246: =I234+I240 -> 0 | K246: 0 | M246: =M234+M240 -> 0 | O246: 0 | Q246: =Q234+Q240 -> 0 | S246: =S234+S240 -> 0
D247: Closing Balance | I247: =I237+I243 -> 0 | K247: =K237+K243 -> 0 | M247: =M237+M243 -> 0 | O247: =O237+O243 -> 0 | Q247: =Q237+Q243 -> 0 | S247: =S237+S243 -> 0
D248: Incremental CAPEX | I248: =I247 -> 0 | K248: =K247 -> 0 | M248: =M247 -> 0 | O248: =O247 -> 0 | Q248: =Q247 -> 0 | S248: =S247 -> 0
B251: Net Fixed Assets - Land Rights
C253: Gross Book Value
D254: Opening Balance
D255: Capital Additions during year (from ICM Costs) | I255: ='2. ICM_Costs'!G206 -> 0 | K255: ='2. ICM_Costs'!I206 -> 0 | M255: ='2. ICM_Costs'!K206 -> 0 | O255: ='2. ICM_Costs'!M206 -> 0 | Q255: ='2. ICM_Costs'!O206 -> 0 | S255: ='2. ICM_Costs'!Q206 -> 0
D256: Retirements/Removals (if applicable)
D257: Closing Balance | I257: =I254+I255-I256 -> 0 | K257: =K254+K255-K256 -> 0 | M257: =M254+M255-M256 -> 0 | O257: =O254+O255-O256 -> 0 | Q257: =Q254+Q255-Q256 -> 0 | S257: =S254+S255-S256 -> 0
C259: Accumulated Depreciation
D260: Opening Balance
D261: Amortization expense during year | I261: =IF(ISERROR(-(I255/('3. Cost_of_Service_Parameters'!G69*2)+MIN((I254/'3. Cost_of_Service_Parameters'!G69),(I254+I260)))), 0, -(I255/('3. Cost_of_Service_Parameters'!G69*2)+MIN((I254/'3. Cost_of_Service_Parameters'!G69),(I254+I260)))) -> 0 | K261: =IF(ISERROR(-(K255/('3. Cost_of_Service_Parameters'!I69*2)+MIN((K254/'3. Cost_of_Service_Parameters'!I69),(K254+K260)))), 0, -(K255/('3. Cost_of_Service_Parameters'!I69*2)+MIN((K254/'3. Cost_of_Service_Parameters'!I69),(K254+K260)))) -> 0 | M261: =IF(ISERROR(-(M255/('3. Cost_of_Service_Parameters'!K69*2)+MIN((M254/'3. Cost_of_Service_Parameters'!K69),(M254+M260)))), 0, -(M255/('3. Cost_of_Service_Parameters'!K69*2)+MIN((M254/'3. Cost_of_Service_Parameters'!K69),(M254+M260)))) -> 0 | O261: =IF(ISERROR(-(O255/('3. Cost_of_Service_Parameters'!M69*2)+MIN((O254/'3. Cost_of_Service_Parameters'!M69),(O254+O260)))), 0, -(O255/('3. Cost_of_Service_Parameters'!M69*2)+MIN((O254/'3. Cost_of_Service_Parameters'!M69),(O254+O260)))) -> 0 | Q261: =IF(ISERROR(-(Q255/('3. Cost_of_Service_Parameters'!O69*2)+MIN((Q254/'3. Cost_of_Service_Parameters'!O69),(Q254+Q260)))), 0, -(Q255/('3. Cost_of_Service_Parameters'!O69*2)+MIN((Q254/'3. Cost_of_Service_Parameters'!O69),(Q254+Q260)))) -> 0 | S261: =IF(ISERROR(-(S255/('3. Cost_of_Service_Parameters'!Q69*2)+MIN((S254/'3. Cost_of_Service_Parameters'!Q69),(S254+S260)))), 0, -(S255/('3. Cost_of_Service_Parameters'!Q69*2)+MIN((S254/'3. Cost_of_Service_Parameters'!Q69),(S254+S260)))) -> 0
D262: Retirements/Removals (if applicable)
D263: Closing Balance | I263: =I260+I261-I262 -> 0 | K263: =K260+K261-K262 -> 0 | M263: =M260+M261-M262 -> 0 | O263: =O260+O261-O262 -> 0 | Q263: =Q260+Q261-Q262 -> 0 | S263: =S260+S261-S262 -> 0
C265: Net Book Value
D266: Opening Balance | I266: =I254+I260 -> 0 | K266: 0 | M266: =M254+M260 -> 0 | O266: 0 | Q266: =Q254+Q260 -> 0 | S266: =S254+S260 -> 0
D267: Closing Balance | I267: =I257+I263 -> 0 | K267: =K257+K263 -> 0 | M267: =M257+M263 -> 0 | O267: =O257+O263 -> 0 | Q267: =Q257+Q263 -> 0 | S267: =S257+S263 -> 0
D268: Incremental CAPEX | I268: =I267 -> 0 | K268: =K267 -> 0 | M268: =M267 -> 0 | O268: =O267 -> 0 | Q268: =Q267 -> 0 | S268: =S267 -> 0
D275: Additions | I275: =I23+I42+I61+I80+I99+I118+I137+I156+I175+I195+I215+I235+I255 -> 2383087.84 | K275: =K23+K42+K61+K80+K99+K118+K137+K156+K175+K195+K215+K235+K255 -> 0 | M275: =M23+M42+M61+M80+M99+M118+M137+M156+M175+M195+M215+M235+M255 -> 0 | O275: =O23+O42+O61+O80+O99+O118+O137+O156+O175+O195+O215+O235+O255 -> 0 | Q275: =Q23+Q42+Q61+Q80+Q99+Q118+Q137+Q156+Q175+Q195+Q215+Q235+Q255 -> 0 | S275: =S23+S42+S61+S80+S99+S118+S137+S156+S175+S195+S215+S235+S255 -> 0
D276: Incremental CAPEX | I276: =I36+I55+I74+I93+I112+I131+I150+I169+I188+I208+I228+I248+I268 -> 2331317.7 | K276: =K36+K55+K74+K93+K112+K131+K150+K169+K188+K208+K228+K248+K268 -> 2279547.56 | M276: =M36+M55+M74+M93+M112+M131+M150+M169+M188+M208+M228+M248+M268 -> 2227777.42 | O276: =O36+O55+O74+O93+O112+O131+O150+O169+O188+O208+O228+O248+O268 -> 2176007.279 | Q276: =Q36+Q55+Q74+Q93+Q112+Q131+Q150+Q169+Q188+Q208+Q228+Q248+Q268 -> 2129234.452 | S276: =S36+S55+S74+S93+S112+S131+S150+S169+S188+S208+S228+S248+S268 -> 2082461.625
D277: Total Amortization | I277: =I29+I48+I67+I86+I105+I124+I143+I162+I181+I201+I221+I241+I261 -> -51770.14015 | K277: =K29+K48+K67+K86+K105+K124+K143+K162+K181+K201+K221+K241+K261 -> -51770.14015 | M277: =M29+M48+M67+M86+M105+M124+M143+M162+M181+M201+M221+M241+M261 -> -51770.14015 | O277: =O29+O48+O67+O86+O105+O124+O143+O162+O181+O201+O221+O241+O261 -> -51770.14015 | Q277: =Q29+Q48+Q67+Q86+Q105+Q124+Q143+Q162+Q181+Q201+Q221+Q241+Q261 -> -46772.82721 | S277: =S29+S48+S67+S86+S105+S124+S143+S162+S181+S201+S221+S241+S261 -> -46772.82721

Sheet 5. UCC_Calculation
A18: Sheet 6: CCA For PILs Calculation
A20: UCC/Class 47 | D20: 2021
D21: ='2. ICM_Costs'!G19 -> Audited Actual
A23: Opening UCC | D23: 0
A24: Capital Additions | D24: ='2. ICM_Costs'!G216 -> 2383087.84
A25: Retirements/Removals (if applicable)
A26: UCC Full Year | D26: =SUM(D23:D24)-D25 -> 2383087.84
A29: CCA Rate Class | D29: ='3. Cost_of_Service_Parameters'!G83 -> 47
A30: CCA Rate | D30: ='3. Cost_of_Service_Parameters'!G84 -> 0.08
A31: CCA | D31: =D26*D30 -> 190647.0272
A32: Closing UCC | D32: =IF((D26-D31)<0, 0, D26-D31) -> 2192440.813
A34: UCC/Class 8 | D34: =D20 -> 2021
D35: Audited Actual
A37: Opening UCC | D37: 0
A38: Capital Additions RTU's | D38: 0
A39: Retirements/Removals (if applicable)
A40: UCC Full Year | D40: =SUM(D37:D38)-D39 -> 0
A43: CCA Rate Class | D43: ='3. Cost_of_Service_Parameters'!G134 -> 47
A44: CCA Rate | D44: ='3. Cost_of_Service_Parameters'!G135 -> 0.08
A45: CCA | D45: =D40*D44 -> 0
A46: Closing UCC | D46: =IF((D40-D45)<0, 0, D40-D45) -> 0

Sheet 6. ICMIRR_2021 actual
C16: Goreway Road Widening - Brampton RZ
F17: Actual
C19: Return on Rate Base
C20: Incremental Capital | F20: 2383087.84
C21: Depreciation Expense | F21: =-'4. ICM_Assets_and_Rate_Base'!I277 -> 51770.14015
C22: Incremental Capital to be included in Rate Base (avg NBV) | F22: =((F20)+(F20-F21))/2 -> 2357202.77
C24: Deemed ShortTerm Debt % | D24: 0.04 | E24: E | F24: =F22*D24 -> 94288.1108
C25: Deemed Long Term Debt % | D25: 0.56 | E25: F | F25: =F22*D25 -> 1320033.551
C27: Short Term Interest | D27: 0.0216 | E27: I | F27: =F24*D27 -> 2036.623193
C28: Long Term Interest | D28: 0.06072871046 | E28: J | F28: =F25*D28 -> 80163.93533
C30: Return on Rate Base - Interest | F30: =SUM(F27:F28) -> 82200.55852
C33: Deemed Equity % | D33: 0.4 | E33: N | F33: =F22*D33 -> 942881.108
C35: Return on Rate Base -Equity | D35: 0.093 | E35: O | F35: =F33*D35 -> 87687.94304
C37: Return on Rate Base - Total | F37: =F30+F35 -> 169888.5016
C41: Amortization Expense
C43: Amortization Expense - Incremental | E43: C | F43: =F21 -> 51770.14015
C46: Grossed up PIL's
C48: Regulatory Taxable Income | E48: O | F48: =F35 -> 87687.94304
C50: Add Back Amortization Expense | E50: S | F50: =F43 -> 51770.14015
C52: Deduct CCA | F52: 190647.0272
C54: Incremental Taxable Income | F54: =F48+F50-F52 -> -51188.944
C56: Current Tax Rate | D56: 0.265 | E56: X
C58: PIL's Before Gross Up | F58: =F54*D56 -> -13565.07016
C60: Incremental Grossed Up PIL's | F60: =F58/(1-D56) -> -18455.87777
C63: Ontario Capital Tax
C64: Incremental Capital CAPEX
C66: Less : Available Capital Exemption (if any)
C68: Incremental Capital CAPEX subject to OCT
C70: Ontario Capital Tax Rate (F1.1 Z-Factor Tax Changes) | E70: AD
C72: Incremental Ontario Capital Tax
C75: Incremental Revenue Requirement
C76: Return on Rate Base - Total | E76: Q | F76: =F37 -> 169888.5016
C77: Amortization Expense - Total | F77: =F43 -> 51770.14015
C78: Incremental Grossed Up PIL's | E78: Z | F78: =F60 -> -18455.87777
C81: Incremental Revenue Requirement | F81: =SUM(F76:F79) -> 203202.7639

Sheet 7. Rate Rider Revs
B13: This worksheet calculates the rate riders revenues.
B17: Sheet 7: ICM Rate Rider Revenues
B22: Prescribed Interest Rates | C22: Approved Deferral and Variance Accounts | D22: CWIP | F22: Date | G22: Year | H22: Quarter | J22: Opening Balance (Principal) | K22: Rate Rider Revenues | L22: Interest Rate | M22: Interest | N22: Principal & Interest (Cumm.) | P22: Board Approved ICM Rate Rider | Q22: Board Approved ICM Rate Rider (Cumm.)
F23: 2021-01-01 | G23: =YEAR(F23) -> 2021 | H23: =IF(MONTH(F23)=0,"",IF(MONTH(F23)<4,"Q1",IF(MONTH(F23)<7,"Q2",IF(MONTH(F23)<10,"Q3","Q4")))) -> Q1 | I23: =CONCATENATE(G23," ",H23) -> 2021 Q1 | J23: 0 | K23: 5863.088117 | L23: =VLOOKUP(I23,$B$22:$D$59,2) -> 0.0057 | M23: =ROUND(J23*L23/12,2) -> 0 | N23: =K23+M23 -> 5863.088117 | P23: ='6. ICMIRR_2021 actual'!$F$81/12 -> 16933.56366 | Q23: =P23 -> 16933.56366
B24: 2018 Q1 | C24: 0.015 | D24: 0.0299 | F24: 2021-02-01 | G24: 2021 | H24: Q1 | I24: 2021 Q1 | J24: =J23+K23 -> 5863.088117 | K24: 21796.50864 | L24: 0.0057 | M24: 2.78 | N24: =N23+K24+M24 -> 27662.37675 | P24: ='6. ICMIRR_2021 actual'!$F$81/12 -> 16933.56366 | Q24: =Q23+P24 -> 33867.12732
B25: 2018 Q2 | C25: 0.0189 | D25: 0.0335 | F25: 2021-03-01 | G25: 2021 | H25: Q1 | I25: 2021 Q1 | J25: 27659.59675 | K25: 17026.63847 | L25: 0.0057 | M25: 13.14 | N25: 44702.15523 | P25: ='6. ICMIRR_2021 actual'!$F$81/12 -> 16933.56366 | Q25: =Q24+P25 -> 50800.69099
B26: 2018 Q3 | C26: 0.0189 | D26: 0.0335 | F26: 2021-04-01 | G26: 2021 | H26: Q2 | I26: 2021 Q2 | J26: 44686.23523 | K26: 13206.03736 | L26: 0.0057 | M26: 21.23 | N26: 57929.42259 | P26: ='6. ICMIRR_2021 actual'!$F$81/12 -> 16933.56366 | Q26: 67734.25465
B27: 2018 Q4 | C27: 0.0217 | D27: 0.0335 | F27: 2021-05-01 | G27: 2021 | H27: Q2 | I27: 2021 Q2 | J27: 57892.27259 | K27: 15247.12963 | L27: 0.0057 | M27: 27.5 | N27: 73204.05223 | P27: ='6. ICMIRR_2021 actual'!$F$81/12 -> 16933.56366 | Q27: 84667.81831
B28: 2019 Q1 | C28: 0.0245 | D28: 0.0382 | F28: 2021-06-01 | G28: 2021 | H28: Q2 | I28: 2021 Q2 | J28: 73139.40223 | K28: 15170.38147 | L28: 0.0057 | M28: 34.74 | N28: 88409.1737 | P28: ='6. ICMIRR_2021 actual'!$F$81/12 -> 16933.56366 | Q28: 101601.382
B29: 2019 Q2 | C29: 0.0218 | D29: 0.0339 | F29: 2021-07-01 | G29: 2021 | H29: Q3 | I29: 2021 Q3 | J29: 88309.7837 | K29: 14724.5297 | L29: 0.0057 | M29: 41.95 | N29: 103175.6534 | P29: ='6. ICMIRR_2021 actual'!$F$81/12 -> 16933.56366 | Q29: 118534.9456
B30: 2019 Q3 | C30: 0.0218 | D30: 0.0288 | F30: 2021-08-01 | G30: 2021 | H30: Q3 | I30: 2021 Q3 | J30: 103034.3134 | K30: 16435.1295 | L30: 0.0057 | M30: 48.94 | N30: 119659.7229 | P30: ='6. ICMIRR_2021 actual'!$F$81/12 -> 16933.56366 | Q30: 135468.5093
B31: 2019 Q4 | C31: 0.0218 | D31: 0.0288 | F31: 2021-09-01 | G31: 2021 | H31: Q3 | I31: 2021 Q3 | J31: 119469.4429 | K31: 14859.04155 | L31: 0.0057 | M31: 56.75 | N31: 134575.5144 | P31: ='6. ICMIRR_2021 actual'!$F$81/12 -> 16933.56366 | Q31: 152402.073
B32: 2020 Q1 | C32: 0.0218 | D32: 0.0288 | F32: 2021-10-01 | G32: 2021 | H32: Q4 | I32: 2021 Q4 | J32: 134328.4844 | K32: 14939.97643 | L32: 0.0057 | M32: 63.81 | N32: 149579.3009 | P32: ='6. ICMIRR_2021 actual'!$F$81/12 -> 16933.56366 | Q32: 169335.6366
B33: 2020 Q2 | C33: 0.0218 | D33: 0.0248 | F33: 2021-11-01 | G33: 2021 | H33: Q4 | I33: 2021 Q4 | J33: 149268.4609 | K33: 15568.70181 | L33: 0.0057 | M33: 70.9 | N33: 165218.9027 | P33: ='6. ICMIRR_2021 actual'!$F$81/12 -> 16933.56366 | Q33: 186269.2003
B34: 2020 Q3 | C34: 0.0057 | D34: 0.0248 | F34: 2021-12-01 | G34: 2021 | H34: =IF(MONTH(F34)=0,"",IF(MONTH(F34)<4,"Q1",IF(MONTH(F34)<7,"Q2",IF(MONTH(F34)<10,"Q3","Q4")))) -> Q4 | I34: 2021 Q4 | J34: 164837.1627 | K34: 15146.73365 | L34: 0.0057 | M34: 78.3 | N34: 180443.9363 | P34: ='6. ICMIRR_2021 actual'!$F$81/12 -> 16933.56366 | Q34: 203202.7639
B35: 2020 Q4 | C35: 0.0057 | D35: 0.0203 | F35: 2022-01-01 | G35: =YEAR(F35) -> 2022 | H35: =IF(MONTH(F35)=0,"",IF(MONTH(F35)<4,"Q1",IF(MONTH(F35)<7,"Q2",IF(MONTH(F35)<10,"Q3","Q4")))) -> Q1 | I35: 2022 Q1 | J35: =J34+K34 -> 179983.8963 | K35: 14393.38752 | L35: =VLOOKUP(I35,$B$22:$D$59,2) -> 0.0057 | M35: =ROUND(J35*L35/12,2) -> 85.49 | N35: =N34+K35+M35 -> 194922.8139 | P35: ='6. ICMIRR_2021 actual'!$F$81/12 -> 16933.56366 | Q35: =Q34+P35 -> 220136.3276
B36: 2021 Q1 | C36: 0.0057 | D36: 0.0203 | F36: 2022-02-01 | G36: 2022 | H36: Q1 | I36: 2022 Q1 | J36: 194377.2839 | K36: 14514.79236 | L36: 0.0057 | M36: 92.33 | N36: 209529.9362 | P36: ='6. ICMIRR_2021 actual'!$F$81/12 -> 16933.56366 | Q36: 237069.8913
B37: 2021 Q2 | C37: 0.0057 | D37: 0.0229 | F37: 2022-03-01 | G37: 2022 | H37: Q1 | I37: 2022 Q1 | J37: 208892.0762 | K37: 16220.45539 | L37: 0.0057 | M37: 99.22 | N37: 225849.6116 | P37: ='6. ICMIRR_2021 actual'!$F$81/12 -> 16933.56366 | Q37: 254003.4549
B38: 2021 Q3 | C38: 0.0057 | D38: 0.0229 | F38: 2022-04-01 | G38: 2022 | H38: Q2 | I38: 2022 Q2 | J38: 225112.5316 | K38: 14016.23157 | L38: 0.0102 | M38: 191.35 | N38: 240057.1932 | P38: ='6. ICMIRR_2021 actual'!$F$81/12 -> 16933.56366 | Q38: 270937.0186
B39: 2021 Q4 | C39: 0.0057 | D39: 0.0229 | F39: 2022-05-01 | G39: 2022 | H39: Q2 | I39: 2022 Q2 | J39: 239128.7632 | K39: 15734.42717 | L39: 0.0102 | M39: 203.26 | N39: 255994.8804 | P39: ='6. ICMIRR_2021 actual'!$F$81/12 -> 16933.56366 | Q39: 287870.5823
B40: 2022 Q1 | C40: 0.0057 | D40: 0.0272 | F40: 2022-06-01 | G40: 2022 | H40: Q2 | I40: 2022 Q2 | J40: 254863.1904 | K40: 15321.94122 | L40: 0.0102 | M40: 216.63 | N40: 271533.4516 | P40: ='6. ICMIRR_2021 actual'!$F$81/12 -> 16933.56366 | Q40: 304804.1459
B41: 2022 Q2 | C41: 0.0102 | D41: 0.0331 | F41: 2022-07-01 | G41: 2022 | H41: Q3 | I41: 2022 Q3 | J41: 270185.1316 | K41: 15433.22167 | L41: 0.022 | M41: 495.34 | N41: 287462.0132 | P41: ='6. ICMIRR_2021 actual'!$F$81/12 -> 16933.56366 | Q41: 321737.7096
B42: 2022 Q3 | C42: 0.022 | D42: 0.0466 | F42: 2022-08-01 | G42: 2022 | H42: Q3 | I42: 2022 Q3 | J42: 285618.3532 | K42: 16403.99626 | L42: 0.022 | M42: 523.63 | N42: 304389.6395 | P42: ='6. ICMIRR_2021 actual'!$F$81/12 -> 16933.56366 | Q42: 338671.2732
B43: 2022 Q4 | C43: 0.0387 | D43: 0.0501 | F43: 2022-09-01 | G43: 2022 | H43: Q3 | I43: 2022 Q3 | J43: 302022.3495 | K43: 14328.08825 | L43: 0.022 | M43: 553.71 | N43: 319271.4377 | P43: ='6. ICMIRR_2021 actual'!$F$81/12 -> 16933.56366 | Q43: 355604.8369
B44: 2023 Q1 | C44: 0.0473 | D44: 0.0501 | F44: 2022-10-01 | G44: 2022 | H44: Q4 | I44: 2022 Q4 | J44: 316350.4377 | K44: 15036.6598 | L44: 0.0387 | M44: 1020.23 | N44: 335328.3276 | P44: ='6. ICMIRR_2021 actual'!$F$81/12 -> 16933.56366 | Q44: 372538.4006
B45: 2023 Q2 | C45: 0.0498 | D45: 0.0501 | F45: 2022-11-01 | G45: 2022 | H45: Q4 | I45: 2022 Q4 | J45: 331387.0976 | K45: 14545.03006 | L45: 0.0387 | M45: 1068.72 | N45: 350942.0776 | P45: ='6. ICMIRR_2021 actual'!$F$81/12 -> 16933.56366 | Q45: 389471.9642
B46: 2023 Q3 | C46: 0.0498 | D46: 0.0501 | F46: 2022-12-01 | G46: 2022 | H46: =IF(MONTH(F46)=0,"",IF(MONTH(F46)<4,"Q1",IF(MONTH(F46)<7,"Q2",IF(MONTH(F46)<10,"Q3","Q4")))) -> Q4 | I46: 2022 Q4 | J46: 345932.1276 | K46: 16043.08799 | L46: 0.0387 | M46: 1115.63 | N46: 368100.7956 | P46: ='6. ICMIRR_2021 actual'!$F$81/12 -> 16933.56366 | Q46: 406405.5279
B47: 2023 Q4 | C47: 0.0549 | D47: 0.0548 | F47: 2023-01-01 | G47: =YEAR(F47) -> 2023 | H47: =IF(MONTH(F47)=0,"",IF(MONTH(F47)<4,"Q1",IF(MONTH(F47)<7,"Q2",IF(MONTH(F47)<10,"Q3","Q4")))) -> Q1 | I47: 2023 Q1 | J47: =J46+K46 -> 361975.2156 | K47: 15386.22204 | L47: =VLOOKUP(I47,$B$22:$D$59,2) -> 0.0473 | M47: =ROUND(J47*L47/12,2) -> 1426.79 | N47: =N46+K47+M47 -> 384913.8076 | P47: ='6. ICMIRR_2021 actual'!$F$81/12 -> 16933.56366 | Q47: =Q46+P47 -> 423339.0916
B48: 2024 Q1 | C48: 0.0549 | D48: 0.0548 | F48: 2023-02-01 | G48: 2023 | H48: Q1 | I48: 2023 Q1 | J48: =J47+K47 -> 377361.4376 | K48: 14140.26784 | L48: 0.0473 | M48: =ROUND(J48*L48/12,2) -> 1487.43 | N48: 400541.5055 | P48: ='6. ICMIRR_2021 actual'!$F$81/12 -> 16933.56366 | Q48: 440272.6552
B49: 2024 Q2 | C49: 0.0549 | D49: 0.0598 | F49: 2023-03-01 | G49: 2023 | H49: Q1 | I49: 2023 Q1 | J49: 391501.7055 | K49: 15305.20688 | L49: 0.0473 | M49: 1543.17 | N49: 417389.8824 | P49: ='6. ICMIRR_2021 actual'!$F$81/12 -> 16933.56366 | Q49: 457206.2189
B50: 2024 Q3 | C50: 0.052 | D50: 0.0598 | F50: 2023-04-01 | G50: 2023 | H50: Q2 | I50: 2023 Q2 | J50: 406806.9124 | K50: 15010.97507 | L50: 0.0498 | M50: 1688.25 | N50: 434089.1074 | P50: ='6. ICMIRR_2021 actual'!$F$81/12 -> 16933.56366 | Q50: 474139.7825
B51: 2024 Q4 | C51: 0.044 | D51: 0.0455 | F51: 2023-05-01 | G51: 2023 | H51: Q2 | I51: 2023 Q2 | J51: 421817.8874 | K51: 15223.99606 | L51: 0.0498 | M51: 1750.54 | N51: 451063.6435 | P51: ='6. ICMIRR_2021 actual'!$F$81/12 -> 16933.56366 | Q51: 491073.3462
B52: 2025 Q1 | C52: 0.0364 | D52: 0.0423 | F52: 2023-06-01 | G52: 2023 | H52: Q2 | I52: =CONCATENATE(G52," ",H52) -> 2023 Q2 | J52: 437041.8835 | K52: 15545.90438 | L52: 0.0498 | M52: 1813.72 | N52: 468423.2679 | P52: ='6. ICMIRR_2021 actual'!$F$81/12 -> 16933.56366 | Q52: 508006.9099
B53: 2025 Q2 | C53: 0.0316 | D53: 0.0423 | F53: 2023-07-01 | G53: 2023 | H53: Q3 | I53: 2023 Q3 | J53: 452587.7879 | K53: 15980.819 | L53: 0.0498 | M53: 1878.24 | N53: 486282.3269 | P53: ='6. ICMIRR_2021 actual'!$F$81/12 -> 16933.56366 | Q53: 524940.4735
B54: 2025 Q3 | C54: 0.0316 | D54: 0.0423 | F54: 2023-08-01 | G54: 2023 | H54: Q3 | I54: 2023 Q3 | J54: 468568.6069 | K54: 15279.36913 | L54: 0.0498 | M54: 1944.56 | N54: 503506.256 | P54: ='6. ICMIRR_2021 actual'!$F$81/12 -> 16933.56366 | Q54: 541874.0372
B55: 2025 Q4 | C55: 0.0316 | D55: 0.0423 | F55: 2023-09-01 | G55: 2023 | H55: Q3 | I55: 2023 Q3 | J55: 483847.976 | K55: 15010.35045 | L55: 0.0498 | M55: 2007.97 | N55: 520524.5765 | P55: ='6. ICMIRR_2021 actual'!$F$81/12 -> 16933.56366 | Q55: 558807.6009
B56: 2026 Q1 | C56: 0.0316 | D56: 0.0423 | F56: 2023-10-01 | G56: 2023 | H56: Q4 | I56: 2023 Q4 | J56: 498858.3265 | K56: 15388.82588 | L56: 0.0549 | M56: 2282.28 | N56: 538195.6823 | P56: ='6. ICMIRR_2021 actual'!$F$81/12 -> 16933.56366 | Q56: 575741.1645
B57: 2026 Q2 | C57: 0.0316 | D57: 0.0423 | F57: 2023-11-01 | G57: 2023 | H57: Q4 | I57: 2023 Q4 | J57: 514247.1523 | K57: 15114.9181 | L57: 0.0549 | M57: 2352.68 | N57: 555663.2804 | P57: ='6. ICMIRR_2021 actual'!$F$81/12 -> 16933.56366 | Q57: 592674.7282
B58: 2026 Q3 | C58: 0.0316 | D58: 0.0423 | F58: 2023-12-01 | G58: 2023 | H58: =IF(MONTH(F58)=0,"",IF(MONTH(F58)<4,"Q1",IF(MONTH(F58)<7,"Q2",IF(MONTH(F58)<10,"Q3","Q4")))) -> Q4 | I58: 2023 Q4 | J58: 529362.0704 | K58: 16241.54953 | L58: 0.0549 | M58: 2421.83 | N58: 574326.66 | P58: ='6. ICMIRR_2021 actual'!$F$81/12 -> 16933.56366 | Q58: 609608.2918
B59: 2026 Q4 | C59: 0.0316 | D59: 0.0423 | F59: 2024-01-01 | G59: =YEAR(F59) -> 2024 | H59: =IF(MONTH(F59)=0,"",IF(MONTH(F59)<4,"Q1",IF(MONTH(F59)<7,"Q2",IF(MONTH(F59)<10,"Q3","Q4")))) -> Q1 | I59: 2024 Q1 | J59: =J58+K58 -> 545603.62 | K59: 15575.64539 | L59: =VLOOKUP(I59,$B$22:$D$59,2) -> 0.0549 | M59: =ROUND(J59*L59/12,2) -> 2496.14 | N59: =N58+K59+M59 -> 592398.4454 | P59: ='6. ICMIRR_2021 actual'!$F$81/12 -> 16933.56366 | Q59: =Q58+P59 -> 626541.8555
F60: 2024-02-01 | G60: 2024 | H60: Q1 | I60: 2024 Q1 | J60: 561179.2654 | K60: 14444.55129 | L60: 0.0549 | M60: 2567.4 | N60: 609410.3967 | P60: ='6. ICMIRR_2021 actual'!$F$81/12 -> 16933.56366 | Q60: 643475.4192
B61: Note: 2025-2026 Interest rates are forecasted. | F61: 2024-03-01 | G61: 2024 | H61: Q1 | I61: 2024 Q1 | J61: 575623.8167 | K61: 15242.50894 | L61: 0.0549 | M61: 2633.48 | N61: 627286.3856 | P61: ='6. ICMIRR_2021 actual'!$F$81/12 -> 16933.56366 | Q61: 660408.9828
F62: 2024-04-01 | G62: 2024 | H62: Q2 | I62: 2024 Q2 | J62: 590866.3256 | K62: 14790.68188 | L62: 0.0549 | M62: 2703.21 | N62: 644780.2775 | P62: ='6. ICMIRR_2021 actual'!$F$81/12 -> 16933.56366 | Q62: 677342.5465
F63: 2024-05-01 | G63: 2024 | H63: Q2 | I63: 2024 Q2 | J63: 605657.0075 | K63: 15556.60823 | L63: 0.0549 | M63: 2770.88 | N63: 663107.7657 | P63: ='6. ICMIRR_2021 actual'!$F$81/12 -> 16933.56366 | Q63: 694276.1102
F64: 2024-06-01 | G64: 2024 | H64: Q2 | I64: 2024 Q2 | J64: 621213.6157 | K64: 15465.92022 | L64: 0.0549 | M64: 2842.05 | N64: 681415.7359 | P64: ='6. ICMIRR_2021 actual'!$F$81/12 -> 16933.56366 | Q64: 711209.6738
F65: 2024-07-01 | G65: 2024 | H65: Q3 | I65: 2024 Q3 | J65: 636679.5359 | K65: 15855.11958 | L65: 0.052 | M65: 2758.94 | N65: 700029.7955 | P65: ='6. ICMIRR_2021 actual'!$F$81/12 -> 16933.56366 | Q65: 728143.2375
F66: 2024-08-01 | G66: 2024 | H66: Q3 | I66: 2024 Q3 | J66: 652534.6555 | K66: 15839.9907 | L66: 0.052 | M66: 2827.65 | N66: 718697.4362 | P66: ='6. ICMIRR_2021 actual'!$F$81/12 -> 16933.56366 | Q66: 745076.8011
F67: 2024-09-01 | G67: 2024 | H67: Q3 | I67: 2024 Q3 | J67: 668374.6462 | K67: 15342.43583 | L67: 0.052 | M67: 2896.29 | N67: 736936.162 | P67: ='6. ICMIRR_2021 actual'!$F$81/12 -> 16933.56366 | Q67: 762010.3648
F68: 2024-10-01 | G68: 2024 | H68: Q4 | I68: 2024 Q4 | J68: 683717.082 | K68: 15132.12403 | L68: 0.044 | M68: 2506.96 | N68: 754575.2461 | P68: ='6. ICMIRR_2021 actual'!$F$81/12 -> 16933.56366 | Q68: 778943.9285
F69: 2024-11-01 | G69: 2024 | H69: Q4 | I69: 2024 Q4 | J69: 698849.2061 | K69: 14819.5148 | L69: 0.044 | M69: 2562.45 | N69: 771957.2109 | P69: ='6. ICMIRR_2021 actual'!$F$81/12 -> 16933.56366 | Q69: 795877.4921
F70: 2024-12-01 | G70: 2024 | H70: =IF(MONTH(F70)=0,"",IF(MONTH(F70)<4,"Q1",IF(MONTH(F70)<7,"Q2",IF(MONTH(F70)<10,"Q3","Q4")))) -> Q4 | I70: 2024 Q4 | J70: 713668.7209 | K70: 15557.86751 | L70: 0.044 | M70: 2616.79 | N70: 790131.8684 | P70: ='6. ICMIRR_2021 actual'!$F$81/12 -> 16933.56366 | Q70: 812811.0558
F71: 2025-01-01 | G71: =YEAR(F71) -> 2025 | H71: =IF(MONTH(F71)=0,"",IF(MONTH(F71)<4,"Q1",IF(MONTH(F71)<7,"Q2",IF(MONTH(F71)<10,"Q3","Q4")))) -> Q1 | I71: 2025 Q1 | J71: =J70+K70 -> 729226.5884 | K71: 15420.64646 | L71: =VLOOKUP(I71,$B$22:$D$59,2) -> 0.0364 | M71: =ROUND(J71*L71/12,2) -> 2211.99 | N71: =N70+K71+M71 -> 807764.5048 | P71: ='6. ICMIRR_2021 actual'!$F$81/12 -> 16933.56366 | Q71: =Q70+P71 -> 829744.6194
F72: 2025-02-01 | G72: 2025 | H72: Q1 | I72: 2025 Q1 | J72: 744647.2348 | K72: 14193.2553 | L72: 0.0364 | M72: 2258.76 | N72: 824216.5201 | P72: ='6. ICMIRR_2021 actual'!$F$81/12 -> 16933.56366 | Q72: 846678.1831
F73: 2025-03-01 | G73: 2025 | H73: Q1 | I73: 2025 Q1 | J73: 758840.4901 | K73: 15452.12086 | L73: 0.0364 | M73: 2301.82 | N73: 841970.461 | P73: ='6. ICMIRR_2021 actual'!$F$81/12 -> 16933.56366 | Q73: 863611.7468
F74: 2025-04-01 | G74: 2025 | H74: Q2 | I74: 2025 Q2 | J74: 774292.611 | K74: 15218.0308 | L74: 0.0316 | M74: 2038.97 | N74: 859227.4618 | P74: ='6. ICMIRR_2021 actual'!$F$81/12 -> 16933.56366 | Q74: 880545.3104
F75: 2025-05-01 | G75: 2025 | H75: Q2 | I75: 2025 Q2 | J75: 789510.6418 | K75: 15590.63308 | L75: =VLOOKUP(I75,$B$22:$D$59,2) -> 0.0316 | M75: 2079.04 | N75: 876897.1349 | P75: ='6. ICMIRR_2021 actual'!$F$81/12 -> 16933.56366 | Q75: 897478.8741
F76: 2025-06-01 | G76: 2025 | H76: Q2 | I76: 2025 Q2 | J76: 805101.2749 | K76: 15361.11513 | L76: 0.0316 | M76: 2120.1 | N76: 894378.35 | P76: ='6. ICMIRR_2021 actual'!$F$81/12 -> 16933.56366 | Q76: 914412.4378
F77: 2025-07-01 | G77: 2025 | H77: Q3 | I77: 2025 Q3 | J77: 820462.39 | K77: 16019.48136 | L77: 0.0316 | M77: 2160.55 | N77: 912558.3814 | P77: ='6. ICMIRR_2021 actual'!$F$81/12 -> 16933.56366 | Q77: 931346.0014
F78: 2025-08-01 | G78: 2025 | H78: Q3 | I78: 2025 Q3 | J78: 836481.8714 | K78: 15856.55704 | L78: 0.0316 | M78: 2202.74 | N78: 930617.6784 | P78: ='6. ICMIRR_2021 actual'!$F$81/12 -> 16933.56366 | Q78: 948279.5651
F79: 2025-09-01 | G79: 2025 | H79: Q3 | I79: 2025 Q3 | J79: 852338.4284 | K79: 15246.82621 | L79: 0.0316 | M79: 2244.49 | N79: 948108.9946 | P79: ='6. ICMIRR_2021 actual'!$F$81/12 -> 16933.56366 | Q79: 965213.1287
F80: 2025-10-01 | G80: 2025 | H80: Q4 | I80: 2025 Q4 | J80: 867585.2546 | K80: 15458.15748 | L80: 0.0316 | M80: 2284.64 | N80: 965851.7921 | P80: ='6. ICMIRR_2021 actual'!$F$81/12 -> 16933.56366 | Q80: 982146.6924
F81: 2025-11-01 | G81: 2025 | H81: Q4 | I81: 2025 Q4 | J81: 883043.4121 | K81: 15045.02408 | L81: 0.0316 | M81: 2325.35 | N81: 983222.1662 | P81: ='6. ICMIRR_2021 actual'!$F$81/12 -> 16933.56366 | Q81: 999080.2561
F82: 2025-12-01 | G82: 2025 | H82: =IF(MONTH(F82)=0,"",IF(MONTH(F82)<4,"Q1",IF(MONTH(F82)<7,"Q2",IF(MONTH(F82)<10,"Q3","Q4")))) -> Q4 | I82: 2025 Q4 | J82: 898088.4362 | K82: 15511.70679 | L82: 0.0316 | M82: 2364.97 | N82: 1001098.843 | P82: ='6. ICMIRR_2021 actual'!$F$81/12 -> 16933.56366 | Q82: 1016013.82
F83: 2026-01-01 | G83: =YEAR(F83) -> 2026 | H83: =IF(MONTH(F83)=0,"",IF(MONTH(F83)<4,"Q1",IF(MONTH(F83)<7,"Q2",IF(MONTH(F83)<10,"Q3","Q4")))) -> Q1 | I83: 2026 Q1 | J83: =J82+K82 -> 913600.143 | K83: 15634.75561 | L83: =VLOOKUP(I83,$B$22:$D$59,2) -> 0.0316 | M83: =ROUND(J83*L83/12,2) -> 2405.81 | N83: =N82+K83+M83 -> 1019139.409 | P83: ='6. ICMIRR_2021 actual'!$F$81/12 -> 16933.56366 | Q83: =Q82+P83 -> 1032947.383
F84: 2026-02-01 | G84: 2026 | H84: Q1 | I84: 2026 Q1 | J84: 929234.8986 | K84: 14631.65076 | L84: 0.0316 | M84: 2446.99 | N84: 1036218.049 | P84: ='6. ICMIRR_2021 actual'!$F$81/12 -> 16933.56366 | Q84: 1049880.947
F85: 2026-03-01 | G85: 2026 | H85: Q1 | I85: 2026 Q1 | J85: 943866.5493 | K85: 15582.44458 | L85: 0.0316 | M85: 2485.52 | N85: 1054286.014 | P85: ='6. ICMIRR_2021 actual'!$F$81/12 -> 16933.56366 | Q85: 1066814.511
F86: 2026-04-01 | G86: 2026 | H86: Q2 | I86: 2026 Q2 | J86: 959448.9939 | K86: 15219.86585 | L86: 0.0316 | M86: 2526.55 | N86: 1072032.43 | P86: ='6. ICMIRR_2021 actual'!$F$81/12 -> 16933.56366 | Q86: 1083748.074
F87: 2026-05-01 | G87: 2026 | H87: Q2 | I87: 2026 Q2 | J87: 974668.8598 | K87: 15770.02798 | L87: 0.0316 | M87: 2566.63 | N87: 1090369.088 | P87: ='6. ICMIRR_2021 actual'!$F$81/12 -> 16933.56366 | Q87: 1100681.638
F88: 2026-06-01 | G88: 2026 | H88: Q2 | I88: 2026 Q2 | J88: 990438.8877 | K88: 15539.86457 | L88: 0.0316 | M88: 2608.16 | N88: 1108517.112 | P88: ='6. ICMIRR_2021 actual'!$F$81/12 -> 16933.56366 | Q88: 1117615.202
F89: 2026-07-01 | G89: 2026 | H89: Q3 | I89: 2026 Q3 | J89: 1005978.752 | K89: 16204.24353 | L89: 0.0316 | M89: 2649.08 | N89: 1127370.436 | P89: ='6. ICMIRR_2021 actual'!$F$81/12 -> 16933.56366 | Q89: 1134548.765
F90: 2026-08-01 | G90: 2026 | H90: Q3 | I90: 2026 Q3 | J90: 1022182.996 | K90: 16039.08381 | L90: 0.0316 | M90: 2691.75 | N90: 1146101.27 | P90: ='6. ICMIRR_2021 actual'!$F$81/12 -> 16933.56366 | Q90: 1151482.329
F91: 2026-09-01 | G91: 2026 | H91: Q3 | I91: 2026 Q3 | J91: 1038222.08 | K91: 15422.45654 | L91: 0.0316 | M91: 2733.98 | N91: 1164257.706 | P91: ='6. ICMIRR_2021 actual'!$F$81/12 -> 16933.56366 | Q91: 1168415.893
F92: 2026-10-01 | G92: 2026 | H92: Q4 | I92: 2026 Q4 | J92: 1053644.536 | K92: 15633.50654 | L92: 0.0316 | M92: 2774.6 | N92: 1182665.813 | P92: ='6. ICMIRR_2021 actual'!$F$81/12 -> 16933.56366 | Q92: 1185349.456
F93: 2026-11-01 | G93: 2026 | H93: Q4 | I93: 2026 Q4 | J93: 1069278.043 | K93: 15216.41124 | L93: 0.0316 | M93: 2815.77 | N93: 1200697.994 | P93: ='6. ICMIRR_2021 actual'!$F$81/12 -> 16933.56366 | Q93: 1202283.02
F94: 2026-12-01 | G94: 2026 | H94: =IF(MONTH(F94)=0,"",IF(MONTH(F94)<4,"Q1",IF(MONTH(F94)<7,"Q2",IF(MONTH(F94)<10,"Q3","Q4")))) -> Q4 | I94: 2026 Q4 | J94: 1084494.454 | K94: 15686.20385 | L94: =VLOOKUP(I94,$B$22:$D$59,2) -> 0.0316 | M94: 2855.84 | N94: 1219240.038 | P94: ='6. ICMIRR_2021 actual'!$F$81/12 -> 16933.56366 | Q94: 1219216.584

Sheet 8. Opex Interest Annual
B13: This worksheet calculates the interest on amortization/depreciation expense, in the absence of monthly data.
B16: Sheet 8: Interest on Amortization (Annual Data)
B21: Year | D21: OM&A | F21: Amortization Expense | H21: Cumulative OM&A and Amortization Expense | J21: Average Cumulative OM&A and Amortization Expense | L21: Average Annual Prescribed Interest Rate for Deferral and Variance Accounts (from Sheet 7) | N21: Simple Interest on OM&A and Amortization Expenses
F22: (from Sheet 4)
B23: 2021 | D23: 0 | F23: =-'4. ICM_Assets_and_Rate_Base'!I277 -> 51770.14015 | H23: =D23+F23 -> 51770.14015 | J23: =(H23)/2 -> 25885.07008 | L23: =AVERAGE('7. Rate Rider Revs'!C36:C39) -> 0.0057 | N23: =J23*L23 -> 147.5448994
B24: 2022 | D24: 0 | F24: =-'4. ICM_Assets_and_Rate_Base'!K277 -> 51770.14015 | H24: =H23+D24+F24 -> 103540.2803 | J24: =(H24+H23)/2 -> 77655.21023 | L24: =AVERAGE('7. Rate Rider Revs'!C40:C43) -> 0.01915 | N24: =J24*L24 -> 1487.097276
B25: 2023 | D25: 0 | F25: =-'4. ICM_Assets_and_Rate_Base'!M277 -> 51770.14015 | H25: =H24+D25+F25 -> 155310.4205 | J25: 129425.3504 | L25: =AVERAGE('7. Rate Rider Revs'!C44:C47) -> 0.05045 | N25: =J25*L25 -> 6529.508927
B26: 2024 | D26: 0 | F26: =-'4. ICM_Assets_and_Rate_Base'!O277 -> 51770.14015 | H26: 207080.5606 | J26: 181195.4905 | L26: =AVERAGE('7. Rate Rider Revs'!C48:C51) -> 0.05145 | N26: 9322.507988
B27: 2025 | D27: 0 | F27: =-'4. ICM_Assets_and_Rate_Base'!Q277 -> 46772.82721 | H27: 253853.3878 | J27: 230466.9742 | L27: =AVERAGE('7. Rate Rider Revs'!C52:C55) -> 0.0328 | N27: 7559.316754
B28: 2026 | D28: 0 | F28: =-'4. ICM_Assets_and_Rate_Base'!S277 -> 46772.82721 | H28: 300626.215 | J28: 277239.8014 | L28: =AVERAGE('7. Rate Rider Revs'!C56:C59) -> 0.0316 | N28: =J28*L28 -> 8760.777725
B31: Cumulative Interest to 2021 | N31: =SUM($N$23:N23) -> 147.5448994
B32: Cumulative Interest to 2022 | N32: =SUM($N$23:N24) -> 1634.642175
B33: Cumulative Interest to 2023 | N33: =SUM($N$23:N25) -> 8164.151102
B34: Cumulative Interest to 2024 | N34: =SUM($N$23:N26) -> 17486.65909
B35: Cumulative Interest to 2025 | N35: =SUM($N$23:N27) -> 25045.97584
B36: Cumulative Interest to 2026 | N36: =SUM($N$23:N28) -> 33806.75357

Sheet 9. IRR
B14: This worksheet calculates the ICM Incremental Revenue Requirement.
B17: Sheet 9: ICM Incremental Revenue Requirement
H20: 2021 | J20: 2022 | L20: 2023 | N20: 2024 | P20: 2025 | R20: 2026 | T20: Total
C22: Deferred and forecasted ICM Incremental Revenue Requirement (from Sheet 6) | H22: ='6. ICMIRR_2021 actual'!$F$81 -> 203202.7639 | J22: ='6. ICMIRR_2021 actual'!$F$81 -> 203202.7639 | L22: ='6. ICMIRR_2021 actual'!$F$81 -> 203202.7639 | N22: ='6. ICMIRR_2021 actual'!$F$81 -> 203202.7639 | P22: ='6. ICMIRR_2021 actual'!$F$81 -> 203202.7639 | R22: ='6. ICMIRR_2021 actual'!$F$81 -> 203202.7639 | T22: =SUM(H22:R22) -> 1219216.584
C24: Interest on Deferred and forecasted Amortization Expense (Sheet 8) | H24: ='8. Opex Interest Annual'!$N$23 -> 147.5448994 | J24: ='8. Opex Interest Annual'!$N$24 -> 1487.097276 | L24: ='8. Opex Interest Annual'!$N$25 -> 6529.508927 | N24: ='8. Opex Interest Annual'!$N$26 -> 9322.507988 | P24: ='8. Opex Interest Annual'!$N$27 -> 7559.316754 | R24: ='8. Opex Interest Annual'!$N$28 -> 8760.777725 | T24: =SUM(G24:R24) -> 33806.75357
C27: ICM Rate Rider Revenues (from Sheet 7) | H27: =SUM('7. Rate Rider Revs'!K23:K34) -> 179983.8963 | J27: =SUM('7. Rate Rider Revs'!K35:K46) -> 181991.3193 | L27: =SUM('7. Rate Rider Revs'!K47:K58) -> 183628.4044 | N27: =SUM('7. Rate Rider Revs'!K59:K70) -> 183622.9684 | P27: =SUM('7. Rate Rider Revs'!K71:K82) -> 184373.5546 | R27: =SUM('7. Rate Rider Revs'!K83:K94) -> 186580.5148 | T27: =SUM(G27:R27) -> 1100180.658
C29: ICM Rate Rider Interest (from Sheet 7) | H29: =SUM('7. Rate Rider Revs'!M23:M34) -> 460.04 | J29: =SUM('7. Rate Rider Revs'!M35:M46) -> 5665.54 | L29: =SUM('7. Rate Rider Revs'!M47:M58) -> 22597.46 | N29: =SUM('7. Rate Rider Revs'!M59:M70) -> 32182.24 | P29: =SUM('7. Rate Rider Revs'!M71:M82) -> 26593.42 | R29: =SUM('7. Rate Rider Revs'!M83:M94) -> 31560.68 | T29: =SUM(G29:R29) -> 119059.38
C31: Net Deferred Revenue Requirement | H31: =(H22+H24)-(H27+H29) -> 22906.37251 | J31: =(J22+J24)-(J27+J29) -> 17033.00197 | L31: =(L22+L24)-(L27+L29) -> 3506.408498 | N31: =(N22+N24)-(N27+N29) -> -3279.936479 | P31: =(P22+P24)-(P27+P29) -> -204.8938879 | R31: =(R22+R24)-(R27+R29) -> -6177.653171 | T31: =(T22+T24)-(T27+T29) -> 33783.29943
